Workbook

Sheet Calculation
A1: Data in cps | D1: Determination of the | M1: Iterative Approach for Background Identification | Q1: average intensity (cps) | U1: MDG ionic | V1: PN ionic | W1: MDG Particle | X1: PN Particle | Y1: average intensity (cps) | AC1: MDG ionic | AD1: PN ionic | AE1: MDG Particle | AF1: PN Particle | AG1: average intensity (cps) | AK1: MDG ionic | AL1: PN ionic | AM1: MDG Particle | AN1: PN Particle | AO1: average intensity (cps) | AS1: MDG ionic | AT1: PN ionic | AU1: MDG Particle | AV1: PN Particle | AW1: average intensity (cps) | BA1: MDG ionic | BB1: PN ionic | BC1: MDG Particle | BD1: PN Particle | BE1: MDG ionic | BF1: PN ionic | BG1: MDG particle | BH1: PN particle | BT1: Identify Particles
A2: 400.0064001 | D2: Region of Interest | G2: Input Parameter | M2: 400.0064001 | N2: 133408.1304 | O2: 100.0004 | P2: 100.0004 | Q2: MDG ionic | R2: PN ionic | S2: MDG particle | T2: PN particle | U2: =IF(M2="","",IF(M2<Q$3+5*Q$7,M2,"")) -> 400.0064001 | V2: =IF(N2="","",IF(N2<R$3+5*R$7,N2,"")) -> 133408.1304 | W2: =IF(O2="","",IF(O2<S$3+5*S$7,O2,"")) -> 100.0004 | X2: =IF(P2="","",IF(P2<T$3+5*T$7,P2,"")) -> 100.0004 | Y2: MDG ionic | Z2: PN ionic | AA2: MDG particle | AB2: PN particle | AC2: =IF(U2="","",IF(U2<Y$3+5*Y$7,U2,"")) -> 400.0064001 | AD2: =IF(V2="","",IF(V2<Z$3+5*Z$7,V2,"")) -> 133408.1304 | AE2: =IF(W2="","",IF(W2<AA$3+5*AA$7,W2,"")) -> 100.0004 | AF2: =IF(X2="","",IF(X2<AB$3+5*AB$7,X2,"")) -> 100.0004 | AG2: MDG ionic | AH2: PN ionic | AI2: MDG particle | AJ2: PN particle | AK2: =IF(AC2="","",IF(AC2<AG$3+5*AG$7,AC2,"")) -> 400.0064001 | AL2: =IF(AD2="","",IF(AD2<AH$3+5*AH$7,AD2,"")) -> 133408.1304 | AM2: =IF(AE2="","",IF(AE2<AI$3+5*AI$7,AE2,"")) -> 100.0004 | AN2: =IF(AF2="","",IF(AF2<AJ$3+5*AJ$7,AF2,"")) -> 100.0004 | AO2: MDG ionic | AP2: PN ionic | AQ2: MDG particle | AR2: PN particle | AS2: =IF(AK2="","",IF(AK2<AO$3+5*AO$7,AK2,"")) -> 400.0064001 | AT2: =IF(AL2="","",IF(AL2<AP$3+5*AP$7,AL2,"")) -> 133408.1304 | AU2: =IF(AM2="","",IF(AM2<AQ$3+5*AQ$7,AM2,"")) -> 100.0004 | AV2: =IF(AN2="","",IF(AN2<AR$3+5*AR$7,AN2,"")) -> 100.0004 | AW2: MDG ionic | AX2: PN ionic | AY2: MDG particle | AZ2: PN particle | BA2: =IF(AS2="","",IF(AS2<AW$3+5*AW$7,AS2,"")) -> 400.0064001 | BB2: =IF(AT2="","",IF(AT2<AX$3+5*AX$7,AT2,"")) -> 133408.1304 | BC2: =IF(AU2="","",IF(AU2<AY$3+5*AY$7,AU2,"")) -> 100.0004 | BD2: =IF(AV2="","",IF(AV2<AZ$3+5*AZ$7,AV2,"")) -> 100.0004 | BE2: =AVERAGEIF(M:M,">"&BE3,M:M) -> 52125.28088 | BF2: =AVERAGE(N:N) -> 156832.9767 | BG2: =AVERAGEIF(O:O,">"&BG3,O:O) -> 26921.41254 | BH2: =AVERAGEIF(P:P,">"&BH3,P:P) -> 41751.00226 | BI2: average particle intensity | BU2: =IF(O2<$BG$3,"",O2) ->  | BV2: =IF(P2<$BH$3,"",P2) -> 
A3: 200.0016 | D3: Begin | E3: End | M3: 200.0016 | N3: 166501.5744 | O3: 3800.577688 | P3: 100.0004 | Q3: =AVERAGEIF(M:M,">0",M:M) -> 4034.218578 | R3: =AVERAGEIF(N:N,">0",N:N) -> 156832.9767 | S3: =AVERAGEIF(O:O,">0",O:O) -> 466.09906 | T3: =AVERAGEIF(P:P,">0",P:P) -> 1109.187931 | U3: =IF(M3="","",IF(M3<Q$3+5*Q$7,M3,"")) -> 200.0016 | V3: =IF(N3="","",IF(N3<R$3+5*R$7,N3,"")) -> 166501.5744 | W3: =IF(O3="","",IF(O3<S$3+5*S$7,O3,"")) -> 3800.577688 | X3: =IF(P3="","",IF(P3<T$3+5*T$7,P3,"")) -> 100.0004 | Y3: =AVERAGEIF(U:U,">0",U:U) -> 3505.664209 | Z3: =AVERAGEIF(V:V,">0",V:V) -> 156832.9767 | AA3: =AVERAGEIF(W:W,">0",W:W) -> 295.0003787 | AB3: =AVERAGEIF(X:X,">0",X:X) -> 666.7989349 | AC3: =IF(U3="","",IF(U3<Y$3+5*Y$7,U3,"")) -> 200.0016 | AD3: =IF(V3="","",IF(V3<Z$3+5*Z$7,V3,"")) -> 166501.5744 | AE3: =IF(W3="","",IF(W3<AA$3+5*AA$7,W3,"")) ->  | AF3: =IF(X3="","",IF(X3<AB$3+5*AB$7,X3,"")) -> 100.0004 | AG3: =AVERAGEIF(AC:AC,">0",AC:AC) -> 2619.5067 | AH3: =AVERAGEIF(AD:AD,">0",AD:AD) -> 156832.9767 | AI3: =AVERAGEIF(AE:AE,">0",AE:AE) -> 281.598028 | AJ3: =AVERAGEIF(AF:AF,">0",AF:AF) -> 224.9423365 | AK3: =IF(AC3="","",IF(AC3<AG$3+5*AG$7,AC3,"")) -> 200.0016 | AL3: =IF(AD3="","",IF(AD3<AH$3+5*AH$7,AD3,"")) -> 166501.5744 | AM3: =IF(AE3="","",IF(AE3<AI$3+5*AI$7,AE3,"")) ->  | AN3: =IF(AF3="","",IF(AF3<AJ$3+5*AJ$7,AF3,"")) -> 100.0004 | AO3: =AVERAGEIF(AK:AK,">0",AK:AK) -> 982.4169696 | AP3: =AVERAGEIF(AL:AL,">0",AL:AL) -> 156832.9767 | AQ3: =AVERAGEIF(AM:AM,">0",AM:AM) -> 279.6179293 | AR3: =AVERAGEIF(AN:AN,">0",AN:AN) -> 198.9809662 | AS3: =IF(AK3="","",IF(AK3<AO$3+5*AO$7,AK3,"")) -> 200.0016 | AT3: =IF(AL3="","",IF(AL3<AP$3+5*AP$7,AL3,"")) -> 166501.5744 | AU3: =IF(AM3="","",IF(AM3<AQ$3+5*AQ$7,AM3,"")) ->  | AV3: =IF(AN3="","",IF(AN3<AR$3+5*AR$7,AN3,"")) -> 100.0004 | AW3: =AVERAGEIF(AS:AS,">0",AS:AS) -> 409.0698787 | AX3: =AVERAGEIF(AT:AT,">0",AT:AT) -> 156832.9767 | AY3: =AVERAGEIF(AU:AU,">0",AU:AU) -> 278.7857121 | AZ3: =AVERAGEIF(AV:AV,">0",AV:AV) -> 197.3271035 | BA3: =IF(AS3="","",IF(AS3<AW$3+5*AW$7,AS3,"")) -> 200.0016 | BB3: =IF(AT3="","",IF(AT3<AX$3+5*AX$7,AT3,"")) -> 166501.5744 | BC3: =IF(AU3="","",IF(AU3<AY$3+5*AY$7,AU3,"")) ->  | BD3: =IF(AV3="","",IF(AV3<AZ$3+5*AZ$7,AV3,"")) -> 100.0004 | BE3: =AW3+5*AW7 -> 6054.800397 | BF3: =AX3+3*AX7 -> 188267.172 | BG3: =AY3+5*AY7 -> 1288.967091 | BH3: =AZ3+5*AZ7 -> 832.5404587 | BI3: LOD intensity | BU3: =IF(O3<$BG$3,"",O3) -> 3800.577688 | BV3: =IF(P3<$BH$3,"",P3) -> 
A4: 200.0016 | C4: MDG ionic | D4: 2 | E4: 13000 | G4: ICP-MS Parameter | M4: 200.0016 | N4: 147161.1873 | O4: 1100.048402 | P4: 0 | U4: 200.0016 | V4: 147161.1873 | W4: 1100.048402 | X4: 0 | AC4: 200.0016 | AD4: 147161.1873 | AE4: 1100.048402 | AF4: 0 | AK4: 200.0016 | AL4: 147161.1873 | AM4: 1100.048402 | AN4: 0 | AS4: 200.0016 | AT4: 147161.1873 | AU4: 1100.048402 | AV4: 0 | BA4: 200.0016 | BB4: 147161.1873 | BC4: 1100.048402 | BD4: 0 | BH4: =AVERAGE(BV:BV) -> 41751.00226 | BU4: =IF(O4<$BG$3,"",O4) -> 
A5: 100.0004 | C5: PN ionic | D5: 21241 | E5: 35000 | G5: dwelltime | H5: 10 | I5: ms | M5: 100.0004 | N5: 142103.1671 | O5: 700.0196005 | P5: 200.0016 | Q5: standard deviation intensity (cps) | U5: 100.0004 | V5: 142103.1671 | W5: 700.0196005 | X5: 200.0016 | Y5: standard deviation intensity (cps) | AC5: 100.0004 | AD5: 142103.1671 | AE5: 700.0196005 | AF5: 200.0016 | AG5: standard deviation intensity (cps) | AK5: 100.0004 | AL5: 142103.1671 | AM5: 700.0196005 | AN5: 200.0016 | AO5: standard deviation intensity (cps) | AS5: 100.0004 | AT5: 142103.1671 | AU5: 700.0196005 | AV5: 200.0016 | AW5: standard deviation intensity (cps) | BA5: 100.0004 | BB5: 142103.1671 | BC5: 700.0196005 | BD5: 200.0016
A6: 100.0004 | C6: MDG NP | D6: 54195 | E6: 85704 | M6: 100.0004 | N6: 130780.5821 | O6: 100.0004 | P6: 100.0004 | Q6: MDG ionic | R6: PN ionic | S6: MDG particle | T6: PN particle | U6: 100.0004 | V6: 130780.5821 | W6: 100.0004 | X6: 100.0004 | Y6: MDG ionic | Z6: PN ionic | AA6: MDG particle | AB6: PN particle | AC6: 100.0004 | AD6: 130780.5821 | AE6: 100.0004 | AF6: 100.0004 | AG6: MDG ionic | AH6: PN ionic | AI6: MDG particle | AJ6: PN particle | AK6: 100.0004 | AL6: 130780.5821 | AM6: 100.0004 | AN6: 100.0004 | AO6: MDG ionic | AP6: PN ionic | AQ6: MDG particle | AR6: PN particle | AS6: 100.0004 | AT6: 130780.5821 | AU6: 100.0004 | AV6: 100.0004 | AW6: MDG ionic | AX6: PN ionic | AY6: MDG particle | AZ6: PN particle | BA6: 100.0004 | BB6: 130780.5821 | BC6: 100.0004 | BD6: 100.0004
A7: 100.0004 | C7: PN NP | D7: 92500 | E7: 119559 | M7: 100.0004 | N7: 140181.6529 | O7: 100.0004 | P7: 0 | Q7: =_xlfn.STDEV.P(M:M) -> 13042.03279 | R7: =_xlfn.STDEV.P(N:N) -> 10478.06509 | S7: =_xlfn.STDEV.P(O:O) -> 4224.329187 | T7: =_xlfn.STDEV.P(P:P) -> 11217.01022 | U7: 100.0004 | V7: 140181.6529 | W7: 100.0004 | X7: 0 | Y7: =_xlfn.STDEV.P(U:U) -> 11834.87369 | Z7: =_xlfn.STDEV.P(V:V) -> 10478.06509 | AA7: =_xlfn.STDEV.P(W:W) -> 496.1613975 | AB7: =_xlfn.STDEV.P(X:X) -> 3282.917284 | AC7: 100.0004 | AD7: 140181.6529 | AE7: 100.0004 | AF7: 0 | AG7: =_xlfn.STDEV.P(AC:AC) -> 9770.67064 | AH7: =_xlfn.STDEV.P(AD:AD) -> 10478.06509 | AI7: =_xlfn.STDEV.P(AE:AE) -> 209.6745128 | AJ7: =_xlfn.STDEV.P(AF:AF) -> 528.6869949 | AK7: 100.0004 | AL7: 140181.6529 | AM7: 100.0004 | AN7: 0 | AO7: =_xlfn.STDEV.P(AK:AK) -> 4718.931118 | AP7: =_xlfn.STDEV.P(AL:AL) -> 10478.06509 | AQ7: =_xlfn.STDEV.P(AM:AM) -> 203.9070382 | AR7: =_xlfn.STDEV.P(AN:AN) -> 134.7179417 | AS7: 100.0004 | AT7: 140181.6529 | AU7: 100.0004 | AV7: 0 | AW7: =_xlfn.STDEV.P(AS:AS) -> 1129.146104 | AX7: =_xlfn.STDEV.P(AT:AT) -> 10478.06509 | AY7: =_xlfn.STDEV.P(AU:AU) -> 202.0362758 | AZ7: =_xlfn.STDEV.P(AV:AV) -> 127.042671 | BA7: 100.0004 | BB7: 140181.6529 | BC7: 100.0004 | BD7: 0 | BH7: Output Parameter
A8: 0 | G8: Dual-inlet system | M8: 0 | N8: 143822.6656 | O8: 800.0256008 | P8: 100.0004 | U8: 0 | V8: 143822.6656 | W8: 800.0256008 | X8: 100.0004 | AC8: 0 | AD8: 143822.6656 | AE8: 800.0256008 | AF8: 100.0004 | AK8: 0 | AL8: 143822.6656 | AM8: 800.0256008 | AN8: 100.0004 | AS8: 0 | AT8: 143822.6656 | AU8: 800.0256008 | AV8: 100.0004 | BA8: 0 | BB8: 143822.6656 | BC8: 800.0256008 | BD8: 100.0004
A9: 100.0004 | M9: 100.0004 | N9: 156270.7539 | O9: 1900.144411 | P9: 100.0004 | U9: 100.0004 | V9: 156270.7539 | W9: 1900.144411 | X9: 100.0004 | AC9: 100.0004 | AD9: 156270.7539 | AE9: 1900.144411 | AF9: 100.0004 | AK9: 100.0004 | AL9: 156270.7539 | AN9: 100.0004 | AS9: 100.0004 | AT9: 156270.7539 | AV9: 100.0004 | BA9: 100.0004 | BB9: 156270.7539 | BD9: 100.0004 | BH9: analytical mode | BI9: method | BJ9: ionic | BK9: NP | BL9: transport efficiency (%) | BM9: sensitivity (counts/fg) | BN9: mass of NP (fg) | BO9: NP size (nm) | BP9: Bias in size (%) | BQ9: NP concentration (#/mL) | BR9: Recovery (%) | BU9: 1900.144411
A10: 100.0004 | G10: Conventional- Setup (PN) | M10: 100.0004 | N10: 156169.5003 | O10: 900.0324012 | P10: 100.0004 | U10: 100.0004 | V10: 156169.5003 | W10: 900.0324012 | X10: 100.0004 | AC10: 100.0004 | AD10: 156169.5003 | AE10: 900.0324012 | AF10: 100.0004 | AK10: 100.0004 | AL10: 156169.5003 | AM10: 900.0324012 | AN10: 100.0004 | AS10: 100.0004 | AT10: 156169.5003 | AU10: 900.0324012 | AV10: 100.0004 | BA10: 100.0004 | BB10: 156169.5003 | BC10: 900.0324012 | BD10: 100.0004 | BH10: Mode I | BI10: counting | BJ10: PN | BK10: PN | BL10: =ROUND((BI18/(I29*BI30))*100,2) -> 1.74 | BM10: =ROUND(((BF2*(H5/1000))/H23)/((H11/60)*(H5/1000))*0.000001,2) -> 4.48 | BN10: =ROUND((((BH2-AZ3)*(H5/1000))/BM10)*((BL10/100)),2) -> 1.61 | BO10: =ROUND(((6*BN10*0.000000000000001)/(H18*PI()))^(1/3)*10000000,2) -> 54.19 | BP10: =ROUND((BO10/$H$19)*100,2)-100 -> -3.23 | BQ10: =ROUND((BI18/(BL10/100)*(1/BI30)),0) -> 28096 | BR10: =ROUND((BQ10/H29)*100,2) -> 105.61
A11: 400.0064001 | G11: flowrate | H11: 0.21 | I11: ml/min | J11: =ROUND((H11/60)*(H5/1000)*1000000,0) -> 35 | K11: nl/event | M11: 400.0064001 | N11: 144530.7628 | O11: 500.0100002 | P11: 0 | U11: 400.0064001 | V11: 144530.7628 | W11: 500.0100002 | X11: 0 | AC11: 400.0064001 | AD11: 144530.7628 | AE11: 500.0100002 | AF11: 0 | AK11: 400.0064001 | AL11: 144530.7628 | AM11: 500.0100002 | AN11: 0 | AS11: 400.0064001 | AT11: 144530.7628 | AU11: 500.0100002 | AV11: 0 | BA11: 400.0064001 | BB11: 144530.7628 | BC11: 500.0100002 | BD11: 0 | BI11: intensity | BJ11: MDG | BK11: PN | BL11: =ROUND(((((BI35)/H25)*BI34)/(H11/60))*100,2) -> 1.94 | BN11: =ROUND((((BH2-AZ3)*(H5/1000))/BM13),2) -> 1.98 | BO11: =ROUND(((6*BN11*0.000000000000001)/(H18*PI()))^(1/3)*10000000,2) -> 58.06 | BP11: =ROUND((BO11/$H$19)*100,2)-100 -> 3.68
A12: 100.0004 | M12: 100.0004 | N12: 146149.4204 | O12: 500.0100002 | P12: 100.0004 | U12: 100.0004 | V12: 146149.4204 | W12: 500.0100002 | X12: 100.0004 | AC12: 100.0004 | AD12: 146149.4204 | AE12: 500.0100002 | AF12: 100.0004 | AK12: 100.0004 | AL12: 146149.4204 | AM12: 500.0100002 | AN12: 100.0004 | AS12: 100.0004 | AT12: 146149.4204 | AU12: 500.0100002 | AV12: 100.0004 | BA12: 100.0004 | BB12: 146149.4204 | BC12: 500.0100002 | BD12: 100.0004 | BH12: Mode II | BI12: sensitivity | BJ12: MDG | BK12: PN | BL12: =ROUND((BM10/BM13)*100,2) -> 2.13 | BN12: =ROUND((((BH2-AZ3)*(H5/1000))/BM10)*((BL12/100)),2) -> 1.98 | BO12: =ROUND(((6*BN12*0.000000000000001)/(H18*PI()))^(1/3)*10000000,2) -> 58.06 | BP12: 3.68 | BQ12: =ROUND((BI18/(BL12/100))*(1/BI30),0) -> 22952 | BR12: =ROUND((BQ12/H29)*100,2) -> 86.28
A13: 200.0016 | G13: MDG | M13: 200.0016 | N13: 154549.5525 | O13: 600.0144003 | P13: 400.0064001 | U13: 200.0016 | V13: 154549.5525 | W13: 600.0144003 | X13: 400.0064001 | AC13: 200.0016 | AD13: 154549.5525 | AE13: 600.0144003 | AF13: 400.0064001 | AK13: 200.0016 | AL13: 154549.5525 | AM13: 600.0144003 | AN13: 400.0064001 | AS13: 200.0016 | AT13: 154549.5525 | AU13: 600.0144003 | AV13: 400.0064001 | BA13: 200.0016 | BB13: 154549.5525 | BC13: 600.0144003 | BD13: 400.0064001 | BH13: Mode III | BI13: 1 | BJ13: MDG | BK13: MDG | BL13: 100 | BM13: =ROUND(((BE2*(H5/1000))/H24)/(J15),2) -> 210.18 | BN13: =ROUND((((BG2-AY3)*(H5/1000))/BM13)*((BL13/100)),2) -> 1.27 | BO13: =ROUND(((6*BN13*0.000000000000001)/(H18*PI()))^(1/3)*10000000,2) -> 50.07 | BP13: -10.59 | BQ13: =ROUND((BI19/BI31),0) -> 488852 | BR13: =ROUND((BQ13/I30)*100,2) -> 87.02
A14: 67180.04251 | G14: MDG frequence | H14: 5 | I14: Hz | M14: 67180.04251 | N14: 146756.4708 | O14: 700.0196005 | P14: 100.0004 | U14: 67180.04251 | V14: 146756.4708 | W14: 700.0196005 | X14: 100.0004 | AD14: 146756.4708 | AE14: 700.0196005 | AF14: 100.0004 | AL14: 146756.4708 | AM14: 700.0196005 | AN14: 100.0004 | AT14: 146756.4708 | AU14: 700.0196005 | AV14: 100.0004 | BB14: 146756.4708 | BC14: 700.0196005 | BD14: 100.0004
A15: 100.0004 | G15: droplet size | H15: 78 | I15: µm | J15: =ROUND(((4/3)*PI()*((H15/2)*0.0001)^3)*1000000000,0)*0.001 -> 0.248 | K15: nl/event | M15: 100.0004 | N15: 142608.8776 | O15: 600.0144003 | P15: 0 | U15: 100.0004 | V15: 142608.8776 | W15: 600.0144003 | X15: 0 | AC15: 100.0004 | AD15: 142608.8776 | AE15: 600.0144003 | AF15: 0 | AK15: 100.0004 | AL15: 142608.8776 | AM15: 600.0144003 | AN15: 0 | AS15: 100.0004 | AT15: 142608.8776 | AU15: 600.0144003 | AV15: 0 | BA15: 100.0004 | BB15: 142608.8776 | BC15: 600.0144003 | BD15: 0
A16: 100.0004 | M16: 100.0004 | N16: 163259.2259 | O16: 700.0196005 | P16: 100.0004 | U16: 100.0004 | V16: 163259.2259 | W16: 700.0196005 | X16: 100.0004 | AC16: 100.0004 | AD16: 163259.2259 | AE16: 700.0196005 | AF16: 100.0004 | AK16: 100.0004 | AL16: 163259.2259 | AM16: 700.0196005 | AN16: 100.0004 | AS16: 100.0004 | AT16: 163259.2259 | AU16: 700.0196005 | AV16: 100.0004 | BA16: 100.0004 | BB16: 163259.2259 | BC16: 700.0196005 | BD16: 100.0004
A17: 100.0004 | G17: Analyte | M17: 100.0004 | N17: 154853.2768 | O17: 500.0100002 | P17: 200.0016 | U17: 100.0004 | V17: 154853.2768 | W17: 500.0100002 | X17: 200.0016 | AC17: 100.0004 | AD17: 154853.2768 | AE17: 500.0100002 | AF17: 200.0016 | AK17: 100.0004 | AL17: 154853.2768 | AM17: 500.0100002 | AN17: 200.0016 | AS17: 100.0004 | AT17: 154853.2768 | AU17: 500.0100002 | AV17: 200.0016 | BA17: 100.0004 | BB17: 154853.2768 | BC17: 500.0100002 | BD17: 200.0016 | BH17: Number of Particles Detected
A18: 200.0016 | G18: bulk density | H18: 19.32 | I18: g/cm³ | M18: 200.0016 | N18: 159106.1875 | O18: 700.0196005 | P18: 100.0004 | U18: 200.0016 | V18: 159106.1875 | W18: 700.0196005 | X18: 100.0004 | AC18: 200.0016 | AD18: 159106.1875 | AE18: 700.0196005 | AF18: 100.0004 | AK18: 200.0016 | AL18: 159106.1875 | AM18: 700.0196005 | AN18: 100.0004 | AS18: 200.0016 | AT18: 159106.1875 | AU18: 700.0196005 | AV18: 100.0004 | BA18: 200.0016 | BB18: 159106.1875 | BC18: 700.0196005 | BD18: 100.0004 | BH18: PN | BI18: =COUNT(BV:BV) -> 463
A19: 200.0016 | G19: expected particle size | H19: 56 | I19: nm | M19: 200.0016 | N19: 154448.3126 | O19: 600.0144003 | P19: 0 | U19: 200.0016 | V19: 154448.3126 | W19: 600.0144003 | X19: 0 | AC19: 200.0016 | AD19: 154448.3126 | AE19: 600.0144003 | AF19: 0 | AK19: 200.0016 | AL19: 154448.3126 | AM19: 600.0144003 | AN19: 0 | AS19: 200.0016 | AT19: 154448.3126 | AU19: 600.0144003 | AV19: 0 | BA19: 200.0016 | BB19: 154448.3126 | BC19: 600.0144003 | BD19: 0 | BH19: MDG | BI19: =COUNT(BU:BU) -> 191
A20: 100.0004 | G20: mass of particle | H20: =ROUND((H18*(4/3)*PI()*((H19/2)*0.0000001)^3)*1000000000000000,2) -> 1.78 | I20: fg | M20: 100.0004 | N20: 151816.3636 | O20: 1600.102407 | P20: 0 | U20: 100.0004 | V20: 151816.3636 | W20: 1600.102407 | X20: 0 | AC20: 100.0004 | AD20: 151816.3636 | AE20: 1600.102407 | AF20: 0 | AK20: 100.0004 | AL20: 151816.3636 | AN20: 0 | AS20: 100.0004 | AT20: 151816.3636 | AV20: 0 | BA20: 100.0004 | BB20: 151816.3636 | BD20: 0 | BU20: 1600.102407
A21: 200.0016 | M21: 200.0016 | N21: 150500.5956 | O21: 500.0100002 | P21: 500.0100002 | U21: 200.0016 | V21: 150500.5956 | W21: 500.0100002 | X21: 500.0100002 | AC21: 200.0016 | AD21: 150500.5956 | AE21: 500.0100002 | AF21: 500.0100002 | AK21: 200.0016 | AL21: 150500.5956 | AM21: 500.0100002 | AN21: 500.0100002 | AS21: 200.0016 | AT21: 150500.5956 | AU21: 500.0100002 | AV21: 500.0100002 | BA21: 200.0016 | BB21: 150500.5956 | BC21: 500.0100002 | BD21: 500.0100002 | BH21: Timescale ROI
A22: 0 | G22: used concetrations | M22: 0 | N22: 156068.2474 | O22: 800.0256008 | P22: 400.0064001 | U22: 0 | V22: 156068.2474 | W22: 800.0256008 | X22: 400.0064001 | AC22: 0 | AD22: 156068.2474 | AE22: 800.0256008 | AF22: 400.0064001 | AK22: 0 | AL22: 156068.2474 | AM22: 800.0256008 | AN22: 400.0064001 | AS22: 0 | AT22: 156068.2474 | AU22: 800.0256008 | AV22: 400.0064001 | BA22: 0 | BB22: 156068.2474 | BC22: 800.0256008 | BD22: 400.0064001 | BH22: PN ionic | BI22: =((E5-D5)*$H$5)/1000 -> 137.59 | BJ22: sec
A23: 200.0016 | G23: β(ionic) PN | H23: 10 | I23: ng/mL | M23: 200.0016 | N23: 151209.0689 | O23: 800.0256008 | P23: 200.0016 | U23: 200.0016 | V23: 151209.0689 | W23: 800.0256008 | X23: 200.0016 | AC23: 200.0016 | AD23: 151209.0689 | AE23: 800.0256008 | AF23: 200.0016 | AK23: 200.0016 | AL23: 151209.0689 | AM23: 800.0256008 | AN23: 200.0016 | AS23: 200.0016 | AT23: 151209.0689 | AU23: 800.0256008 | AV23: 200.0016 | BA23: 200.0016 | BB23: 151209.0689 | BC23: 800.0256008 | BD23: 200.0016 | BH23: MDG ionic | BI23: =((E6-D6)*$H$5)/1000 -> 315.09 | BJ23: sec
A24: 100.0004 | G24: β(ionic) MDG | H24: 10 | I24: ng/mL | M24: 100.0004 | N24: 154752.0345 | O24: 700.0196005 | P24: 100.0004 | U24: 100.0004 | V24: 154752.0345 | W24: 700.0196005 | X24: 100.0004 | AC24: 100.0004 | AD24: 154752.0345 | AE24: 700.0196005 | AF24: 100.0004 | AK24: 100.0004 | AL24: 154752.0345 | AM24: 700.0196005 | AN24: 100.0004 | AS24: 100.0004 | AT24: 154752.0345 | AU24: 700.0196005 | AV24: 100.0004 | BA24: 100.0004 | BB24: 154752.0345 | BC24: 700.0196005 | BD24: 100.0004 | BH24: PN NP | BI24: =((E7-D7)*$H$5)/1000 -> 270.59 | BJ24: sec
A25: 500.0100002 | G25: β(NP) PN | H25: 0.05 | I25: ng/mL | M25: 500.0100002 | N25: 151613.9288 | O25: 800.0256008 | P25: 600.0144003 | U25: 500.0100002 | V25: 151613.9288 | W25: 800.0256008 | X25: 600.0144003 | AC25: 500.0100002 | AD25: 151613.9288 | AE25: 800.0256008 | AF25: 600.0144003 | AK25: 500.0100002 | AL25: 151613.9288 | AM25: 800.0256008 | AN25: 600.0144003 | AS25: 500.0100002 | AT25: 151613.9288 | AU25: 800.0256008 | AV25: 600.0144003 | BA25: 500.0100002 | BB25: 151613.9288 | BC25: 800.0256008 | BD25: 600.0144003 | BH25: MDG NP | BI25: =((E6-D6)*$H$5)/1000 -> 315.09 | BJ25: sec
A26: 200.0016 | G26: β(NP) MDG | H26: 1 | I26: ng/mL | M26: 200.0016 | N26: 150095.7716 | O26: 100.0004 | P26: 200.0016 | U26: 200.0016 | V26: 150095.7716 | W26: 100.0004 | X26: 200.0016 | AC26: 200.0016 | AD26: 150095.7716 | AE26: 100.0004 | AF26: 200.0016 | AK26: 200.0016 | AL26: 150095.7716 | AM26: 100.0004 | AN26: 200.0016 | AS26: 200.0016 | AT26: 150095.7716 | AU26: 100.0004 | AV26: 200.0016 | BA26: 200.0016 | BB26: 150095.7716 | BC26: 100.0004 | BD26: 200.0016
A27: 300.0036 | M27: 300.0036 | N27: 144834.2453 | O27: 200.0016 | P27: 100.0004 | U27: 300.0036 | V27: 144834.2453 | W27: 200.0016 | X27: 100.0004 | AC27: 300.0036 | AD27: 144834.2453 | AE27: 200.0016 | AF27: 100.0004 | AK27: 300.0036 | AL27: 144834.2453 | AM27: 200.0016 | AN27: 100.0004 | AS27: 300.0036 | AT27: 144834.2453 | AU27: 200.0016 | AV27: 100.0004 | BA27: 300.0036 | BB27: 144834.2453 | BC27: 200.0016 | BD27: 100.0004 | BH27: Volume injected per Timescale
A28: 200.0016 | G28: Number of Particles Injected | I28: per mL | M28: 200.0016 | N28: 144024.9751 | O28: 1100.048402 | P28: 100.0004 | U28: 200.0016 | V28: 144024.9751 | W28: 1100.048402 | X28: 100.0004 | AC28: 200.0016 | AD28: 144024.9751 | AE28: 1100.048402 | AF28: 100.0004 | AK28: 200.0016 | AL28: 144024.9751 | AM28: 1100.048402 | AN28: 100.0004 | AS28: 200.0016 | AT28: 144024.9751 | AU28: 1100.048402 | AV28: 100.0004 | BA28: 200.0016 | BB28: 144024.9751 | BC28: 1100.048402 | BD28: 100.0004 | BH28: PN ionic | BI28: =(H11*(BI22/60)) -> 0.481565 | BJ28: mL
A29: 100.0004 | G29: PN | H29: =ROUND(H25/(H20*0.000001)*BI30,0) -> 26603 | I29: =ROUND(H25/(H20*0.000001),0) -> 28090 | M29: 100.0004 | N29: 148071.847 | O29: 1000.040002 | P29: 0 | U29: 100.0004 | V29: 148071.847 | W29: 1000.040002 | X29: 0 | AC29: 100.0004 | AD29: 148071.847 | AE29: 1000.040002 | AF29: 0 | AK29: 100.0004 | AL29: 148071.847 | AM29: 1000.040002 | AN29: 0 | AS29: 100.0004 | AT29: 148071.847 | AU29: 1000.040002 | AV29: 0 | BA29: 100.0004 | BB29: 148071.847 | BC29: 1000.040002 | BD29: 0 | BH29: MDG ionic | BI29: =J15*H5*BI23*0.000000001 -> 7.814232e-07 | BJ29: mL
A30: 0 | G30: MDG | H30: =ROUND(H26/(H20*0.000001)*BI31,0) -> 220 | I30: =ROUND(H26/(H20*0.000001),0) -> 561798 | M30: 0 | N30: 152524.9111 | O30: 500.0100002 | P30: 300.0036 | U30: 0 | V30: 152524.9111 | W30: 500.0100002 | X30: 300.0036 | AC30: 0 | AD30: 152524.9111 | AE30: 500.0100002 | AF30: 300.0036 | AK30: 0 | AL30: 152524.9111 | AM30: 500.0100002 | AN30: 300.0036 | AS30: 0 | AT30: 152524.9111 | AU30: 500.0100002 | AV30: 300.0036 | BA30: 0 | BB30: 152524.9111 | BC30: 500.0100002 | BD30: 300.0036 | BH30: PN NP | BI30: =(H11*(BI24/60)) -> 0.947065 | BJ30: mL
A31: 100.0004 | M31: 100.0004 | N31: 143013.4606 | O31: 400.0064001 | P31: 100.0004 | U31: 100.0004 | V31: 143013.4606 | W31: 400.0064001 | X31: 100.0004 | AC31: 100.0004 | AD31: 143013.4606 | AE31: 400.0064001 | AF31: 100.0004 | AK31: 100.0004 | AL31: 143013.4606 | AM31: 400.0064001 | AN31: 100.0004 | AS31: 100.0004 | AT31: 143013.4606 | AU31: 400.0064001 | AV31: 100.0004 | BA31: 100.0004 | BB31: 143013.4606 | BC31: 400.0064001 | BD31: 100.0004 | BH31: MDG NP | BI31: =J15*H14*BI25*0.000001 -> 0.0003907116 | BJ31: mL
A32: 0 | M32: 0 | N32: 141192.9395 | O32: 400.0064001 | P32: 100.0004 | U32: 0 | V32: 141192.9395 | W32: 400.0064001 | X32: 100.0004 | AC32: 0 | AD32: 141192.9395 | AE32: 400.0064001 | AF32: 100.0004 | AK32: 0 | AL32: 141192.9395 | AM32: 400.0064001 | AN32: 100.0004 | AS32: 0 | AT32: 141192.9395 | AU32: 400.0064001 | AV32: 100.0004 | BA32: 0 | BB32: 141192.9395 | BC32: 400.0064001 | BD32: 100.0004
A33: 0 | M33: 0 | N33: 146756.4708 | O33: 0 | P33: 200.0016 | U33: 0 | V33: 146756.4708 | W33: 0 | X33: 200.0016 | AC33: 0 | AD33: 146756.4708 | AE33: 0 | AF33: 200.0016 | AK33: 0 | AL33: 146756.4708 | AM33: 0 | AN33: 200.0016 | AS33: 0 | AT33: 146756.4708 | AU33: 0 | AV33: 200.0016 | BA33: 0 | BB33: 146756.4708 | BC33: 0 | BD33: 200.0016 | BH33: Additional Parameters for Intensity Method
A34: 300.0036 | M34: 300.0036 | N34: 160929.3038 | O34: 0 | P34: 100.0004 | U34: 300.0036 | V34: 160929.3038 | W34: 0 | X34: 100.0004 | AC34: 300.0036 | AD34: 160929.3038 | AE34: 0 | AF34: 100.0004 | AK34: 300.0036 | AL34: 160929.3038 | AM34: 0 | AN34: 100.0004 | AS34: 300.0036 | AT34: 160929.3038 | AU34: 0 | AV34: 100.0004 | BA34: 300.0036 | BB34: 160929.3038 | BC34: 0 | BD34: 100.0004 | BH34: k | BI34: =((J15*0.000000001)*H24*1000)/(BE2*(H5/1000)) -> 4.757768127e-09 | BJ34: ng/counts
A35: 55824.37671 | M35: 55824.37671 | N35: 153840.8909 | O35: 0 | P35: 100.0004 | U35: 55824.37671 | V35: 153840.8909 | W35: 0 | X35: 100.0004 | AC35: 55824.37671 | AD35: 153840.8909 | AE35: 0 | AF35: 100.0004 | AL35: 153840.8909 | AM35: 0 | AN35: 100.0004 | AT35: 153840.8909 | AU35: 0 | AV35: 100.0004 | BB35: 153840.8909 | BC35: 0 | BD35: 100.0004 | BH35: qi,p | BI35: =ROUND((SUMIF(P:P,">"&BH3,P:P)*(H5/1000))/BI24,2) -> 714.39 | BJ35: 1/sec
A36: 0 | M36: 0 | N36: 160017.7127 | O36: 100.0004 | P36: 200.0016 | U36: 0 | V36: 160017.7127 | W36: 100.0004 | X36: 200.0016 | AC36: 0 | AD36: 160017.7127 | AE36: 100.0004 | AF36: 200.0016 | AK36: 0 | AL36: 160017.7127 | AM36: 100.0004 | AN36: 200.0016 | AS36: 0 | AT36: 160017.7127 | AU36: 100.0004 | AV36: 200.0016 | BA36: 0 | BB36: 160017.7127 | BC36: 100.0004 | BD36: 200.0016
A37: 100.0004 | M37: 100.0004 | N37: 148780.1836 | O37: 0 | P37: 200.0016 | U37: 100.0004 | V37: 148780.1836 | W37: 0 | X37: 200.0016 | AC37: 100.0004 | AD37: 148780.1836 | AE37: 0 | AF37: 200.0016 | AK37: 100.0004 | AL37: 148780.1836 | AM37: 0 | AN37: 200.0016 | AS37: 100.0004 | AT37: 148780.1836 | AU37: 0 | AV37: 200.0016 | BA37: 100.0004 | BB37: 148780.1836 | BC37: 0 | BD37: 200.0016
A38: 100.0004 | M38: 100.0004 | N38: 153233.4985 | O38: 0 | P38: 200.0016 | U38: 100.0004 | V38: 153233.4985 | W38: 0 | X38: 200.0016 | AC38: 100.0004 | AD38: 153233.4985 | AE38: 0 | AF38: 200.0016 | AK38: 100.0004 | AL38: 153233.4985 | AM38: 0 | AN38: 200.0016 | AS38: 100.0004 | AT38: 153233.4985 | AU38: 0 | AV38: 200.0016 | BA38: 100.0004 | BB38: 153233.4985 | BC38: 0 | BD38: 200.0016
A39: 0 | M39: 0 | N39: 164171.0519 | O39: 0 | P39: 100.0004 | U39: 0 | V39: 164171.0519 | W39: 0 | X39: 100.0004 | AC39: 0 | AD39: 164171.0519 | AE39: 0 | AF39: 100.0004 | AK39: 0 | AL39: 164171.0519 | AM39: 0 | AN39: 100.0004 | AS39: 0 | AT39: 164171.0519 | AU39: 0 | AV39: 100.0004 | BA39: 0 | BB39: 164171.0519 | BC39: 0 | BD39: 100.0004
A40: 300.0036 | M40: 300.0036 | N40: 168325.7627 | O40: 0 | P40: 0 | U40: 300.0036 | V40: 168325.7627 | W40: 0 | X40: 0 | AC40: 300.0036 | AD40: 168325.7627 | AE40: 0 | AF40: 0 | AK40: 300.0036 | AL40: 168325.7627 | AM40: 0 | AN40: 0 | AS40: 300.0036 | AT40: 168325.7627 | AU40: 0 | AV40: 0 | BA40: 300.0036 | BB40: 168325.7627 | BC40: 0 | BD40: 0
A41: 100.0004 | M41: 100.0004 | N41: 162853.991 | O41: 0 | P41: 0 | U41: 100.0004 | V41: 162853.991 | W41: 0 | X41: 0 | AC41: 100.0004 | AD41: 162853.991 | AE41: 0 | AF41: 0 | AK41: 100.0004 | AL41: 162853.991 | AM41: 0 | AN41: 0 | AS41: 100.0004 | AT41: 162853.991 | AU41: 0 | AV41: 0 | BA41: 100.0004 | BB41: 162853.991 | BC41: 0 | BD41: 0
A42: 0 | M42: 0 | N42: 157182.0736 | O42: 100.0004 | P42: 100.0004 | U42: 0 | V42: 157182.0736 | W42: 100.0004 | X42: 100.0004 | AC42: 0 | AD42: 157182.0736 | AE42: 100.0004 | AF42: 100.0004 | AK42: 0 | AL42: 157182.0736 | AM42: 100.0004 | AN42: 100.0004 | AS42: 0 | AT42: 157182.0736 | AU42: 100.0004 | AV42: 100.0004 | BA42: 0 | BB42: 157182.0736 | BC42: 100.0004 | BD42: 100.0004
A43: 200.0016 | M43: 200.0016 | N43: 144834.2453 | O43: 200.0016 | P43: 0 | U43: 200.0016 | V43: 144834.2453 | W43: 200.0016 | X43: 0 | AC43: 200.0016 | AD43: 144834.2453 | AE43: 200.0016 | AF43: 0 | AK43: 200.0016 | AL43: 144834.2453 | AM43: 200.0016 | AN43: 0 | AS43: 200.0016 | AT43: 144834.2453 | AU43: 200.0016 | AV43: 0 | BA43: 200.0016 | BB43: 144834.2453 | BC43: 200.0016 | BD43: 0
A44: 200.0016 | M44: 200.0016 | N44: 153132.2693 | O44: 0 | P44: 200.0016 | U44: 200.0016 | V44: 153132.2693 | W44: 0 | X44: 200.0016 | AC44: 200.0016 | AD44: 153132.2693 | AE44: 0 | AF44: 200.0016 | AK44: 200.0016 | AL44: 153132.2693 | AM44: 0 | AN44: 200.0016 | AS44: 200.0016 | AT44: 153132.2693 | AU44: 0 | AV44: 200.0016 | BA44: 200.0016 | BB44: 153132.2693 | BC44: 0 | BD44: 200.0016
A45: 100.0004 | M45: 100.0004 | N45: 158701.0865 | O45: 0 | P45: 200.0016 | U45: 100.0004 | V45: 158701.0865 | W45: 0 | X45: 200.0016 | AC45: 100.0004 | AD45: 158701.0865 | AE45: 0 | AF45: 200.0016 | AK45: 100.0004 | AL45: 158701.0865 | AM45: 0 | AN45: 200.0016 | AS45: 100.0004 | AT45: 158701.0865 | AU45: 0 | AV45: 200.0016 | BA45: 100.0004 | BB45: 158701.0865 | BC45: 0 | BD45: 200.0016
A46: 100.0004 | M46: 100.0004 | N46: 158093.4593 | O46: 100.0004 | P46: 100.0004 | U46: 100.0004 | V46: 158093.4593 | W46: 100.0004 | X46: 100.0004 | AC46: 100.0004 | AD46: 158093.4593 | AE46: 100.0004 | AF46: 100.0004 | AK46: 100.0004 | AL46: 158093.4593 | AM46: 100.0004 | AN46: 100.0004 | AS46: 100.0004 | AT46: 158093.4593 | AU46: 100.0004 | AV46: 100.0004 | BA46: 100.0004 | BB46: 158093.4593 | BC46: 100.0004 | BD46: 100.0004
A47: 300.0036 | M47: 300.0036 | N47: 156675.7767 | O47: 100.0004 | P47: 100.0004 | U47: 300.0036 | V47: 156675.7767 | W47: 100.0004 | X47: 100.0004 | AC47: 300.0036 | AD47: 156675.7767 | AE47: 100.0004 | AF47: 100.0004 | AK47: 300.0036 | AL47: 156675.7767 | AM47: 100.0004 | AN47: 100.0004 | AS47: 300.0036 | AT47: 156675.7767 | AU47: 100.0004 | AV47: 100.0004 | BA47: 300.0036 | BB47: 156675.7767 | BC47: 100.0004 | BD47: 100.0004
A48: 300.0036 | M48: 300.0036 | N48: 152828.5865 | O48: 0 | P48: 100.0004 | U48: 300.0036 | V48: 152828.5865 | W48: 0 | X48: 100.0004 | AC48: 300.0036 | AD48: 152828.5865 | AE48: 0 | AF48: 100.0004 | AK48: 300.0036 | AL48: 152828.5865 | AM48: 0 | AN48: 100.0004 | AS48: 300.0036 | AT48: 152828.5865 | AU48: 0 | AV48: 100.0004 | BA48: 300.0036 | BB48: 152828.5865 | BC48: 0 | BD48: 100.0004
A49: 100.0004 | M49: 100.0004 | N49: 144834.2453 | O49: 100.0004 | P49: 0 | U49: 100.0004 | V49: 144834.2453 | W49: 100.0004 | X49: 0 | AC49: 100.0004 | AD49: 144834.2453 | AE49: 100.0004 | AF49: 0 | AK49: 100.0004 | AL49: 144834.2453 | AM49: 100.0004 | AN49: 0 | AS49: 100.0004 | AT49: 144834.2453 | AU49: 100.0004 | AV49: 0 | BA49: 100.0004 | BB49: 144834.2453 | BC49: 100.0004 | BD49: 0
A50: 200.0016 | M50: 200.0016 | N50: 155663.2442 | O50: 100.0004 | P50: 100.0004 | U50: 200.0016 | V50: 155663.2442 | W50: 100.0004 | X50: 100.0004 | AC50: 200.0016 | AD50: 155663.2442 | AE50: 100.0004 | AF50: 100.0004 | AK50: 200.0016 | AL50: 155663.2442 | AM50: 100.0004 | AN50: 100.0004 | AS50: 200.0016 | AT50: 155663.2442 | AU50: 100.0004 | AV50: 100.0004 | BA50: 200.0016 | BB50: 155663.2442 | BC50: 100.0004 | BD50: 100.0004
A51: 200.0016 | M51: 200.0016 | N51: 142204.3076 | O51: 100.0004 | P51: 0 | U51: 200.0016 | V51: 142204.3076 | W51: 100.0004 | X51: 0 | AC51: 200.0016 | AD51: 142204.3076 | AE51: 100.0004 | AF51: 0 | AK51: 200.0016 | AL51: 142204.3076 | AM51: 100.0004 | AN51: 0 | AS51: 200.0016 | AT51: 142204.3076 | AU51: 100.0004 | AV51: 0 | BA51: 200.0016 | BB51: 142204.3076 | BC51: 100.0004 | BD51: 0
A52: 100.0004 | M52: 100.0004 | N52: 151917.5822 | O52: 0 | P52: 200.0016 | U52: 100.0004 | V52: 151917.5822 | W52: 0 | X52: 200.0016 | AC52: 100.0004 | AD52: 151917.5822 | AE52: 0 | AF52: 200.0016 | AK52: 100.0004 | AL52: 151917.5822 | AM52: 0 | AN52: 200.0016 | AS52: 100.0004 | AT52: 151917.5822 | AU52: 0 | AV52: 200.0016 | BA52: 100.0004 | BB52: 151917.5822 | BC52: 0 | BD52: 200.0016
A53: 100.0004 | M53: 100.0004 | N53: 143822.6656 | O53: 0 | P53: 0 | U53: 100.0004 | V53: 143822.6656 | W53: 0 | X53: 0 | AC53: 100.0004 | AD53: 143822.6656 | AE53: 0 | AF53: 0 | AK53: 100.0004 | AL53: 143822.6656 | AM53: 0 | AN53: 0 | AS53: 100.0004 | AT53: 143822.6656 | AU53: 0 | AV53: 0 | BA53: 100.0004 | BB53: 143822.6656 | BC53: 0 | BD53: 0
A54: 500.0100002 | M54: 500.0100002 | N54: 153334.7285 | O54: 0 | P54: 400.0064001 | U54: 500.0100002 | V54: 153334.7285 | W54: 0 | X54: 400.0064001 | AC54: 500.0100002 | AD54: 153334.7285 | AE54: 0 | AF54: 400.0064001 | AK54: 500.0100002 | AL54: 153334.7285 | AM54: 0 | AN54: 400.0064001 | AS54: 500.0100002 | AT54: 153334.7285 | AU54: 0 | AV54: 400.0064001 | BA54: 500.0100002 | BB54: 153334.7285 | BC54: 0 | BD54: 400.0064001
A55: 200.0016 | M55: 200.0016 | N55: 144834.2453 | O55: 0 | P55: 500.0100002 | U55: 200.0016 | V55: 144834.2453 | W55: 0 | X55: 500.0100002 | AC55: 200.0016 | AD55: 144834.2453 | AE55: 0 | AF55: 500.0100002 | AK55: 200.0016 | AL55: 144834.2453 | AM55: 0 | AN55: 500.0100002 | AS55: 200.0016 | AT55: 144834.2453 | AU55: 0 | AV55: 500.0100002 | BA55: 200.0016 | BB55: 144834.2453 | BC55: 0 | BD55: 500.0100002
A56: 4500.810146 | M56: 4500.810146 | N56: 161233.1822 | O56: 0 | P56: 100.0004 | U56: 4500.810146 | V56: 161233.1822 | W56: 0 | X56: 100.0004 | AC56: 4500.810146 | AD56: 161233.1822 | AE56: 0 | AF56: 100.0004 | AK56: 4500.810146 | AL56: 161233.1822 | AM56: 0 | AN56: 100.0004 | AS56: 4500.810146 | AT56: 161233.1822 | AU56: 0 | AV56: 100.0004 | BA56: 4500.810146 | BB56: 161233.1822 | BC56: 0 | BD56: 100.0004
A57: 51104.25268 | M57: 51104.25268 | N57: 154448.3126 | O57: 100.0004 | P57: 100.0004 | U57: 51104.25268 | V57: 154448.3126 | W57: 100.0004 | X57: 100.0004 | AC57: 51104.25268 | AD57: 154448.3126 | AE57: 100.0004 | AF57: 100.0004 | AK57: 51104.25268 | AL57: 154448.3126 | AM57: 100.0004 | AN57: 100.0004 | AT57: 154448.3126 | AU57: 100.0004 | AV57: 100.0004 | BB57: 154448.3126 | BC57: 100.0004 | BD57: 100.0004
A58: 0 | M58: 0 | N58: 146655.2937 | O58: 100.0004 | P58: 300.0036 | U58: 0 | V58: 146655.2937 | W58: 100.0004 | X58: 300.0036 | AC58: 0 | AD58: 146655.2937 | AE58: 100.0004 | AF58: 300.0036 | AK58: 0 | AL58: 146655.2937 | AM58: 100.0004 | AN58: 300.0036 | AS58: 0 | AT58: 146655.2937 | AU58: 100.0004 | AV58: 300.0036 | BA58: 0 | BB58: 146655.2937 | BC58: 100.0004 | BD58: 300.0036
A59: 100.0004 | M59: 100.0004 | N59: 149387.3609 | O59: 0 | P59: 100.0004 | U59: 100.0004 | V59: 149387.3609 | W59: 0 | X59: 100.0004 | AC59: 100.0004 | AD59: 149387.3609 | AE59: 0 | AF59: 100.0004 | AK59: 100.0004 | AL59: 149387.3609 | AM59: 0 | AN59: 100.0004 | AS59: 100.0004 | AT59: 149387.3609 | AU59: 0 | AV59: 100.0004 | BA59: 100.0004 | BB59: 149387.3609 | BC59: 0 | BD59: 100.0004
A60: 100.0004 | M60: 100.0004 | N60: 158498.5408 | O60: 0 | P60: 0 | U60: 100.0004 | V60: 158498.5408 | W60: 0 | X60: 0 | AC60: 100.0004 | AD60: 158498.5408 | AE60: 0 | AF60: 0 | AK60: 100.0004 | AL60: 158498.5408 | AM60: 0 | AN60: 0 | AS60: 100.0004 | AT60: 158498.5408 | AU60: 0 | AV60: 0 | BA60: 100.0004 | BB60: 158498.5408 | BC60: 0 | BD60: 0
A61: 200.0016 | M61: 200.0016 | N61: 148881.3778 | O61: 0 | P61: 100.0004 | U61: 200.0016 | V61: 148881.3778 | W61: 0 | X61: 100.0004 | AC61: 200.0016 | AD61: 148881.3778 | AE61: 0 | AF61: 100.0004 | AK61: 200.0016 | AL61: 148881.3778 | AM61: 0 | AN61: 100.0004 | AS61: 200.0016 | AT61: 148881.3778 | AU61: 0 | AV61: 100.0004 | BA61: 200.0016 | BB61: 148881.3778 | BC61: 0 | BD61: 100.0004
A62: 100.0004 | M62: 100.0004 | N62: 152929.8133 | O62: 0 | P62: 200.0016 | U62: 100.0004 | V62: 152929.8133 | W62: 0 | X62: 200.0016 | AC62: 100.0004 | AD62: 152929.8133 | AE62: 0 | AF62: 200.0016 | AK62: 100.0004 | AL62: 152929.8133 | AM62: 0 | AN62: 200.0016 | AS62: 100.0004 | AT62: 152929.8133 | AU62: 0 | AV62: 200.0016 | BA62: 100.0004 | BB62: 152929.8133 | BC62: 0 | BD62: 200.0016
A63: 300.0036 | M63: 300.0036 | N63: 143923.8199 | O63: 0 | P63: 200.0016 | U63: 300.0036 | V63: 143923.8199 | W63: 0 | X63: 200.0016 | AC63: 300.0036 | AD63: 143923.8199 | AE63: 0 | AF63: 200.0016 | AK63: 300.0036 | AL63: 143923.8199 | AM63: 0 | AN63: 200.0016 | AS63: 300.0036 | AT63: 143923.8199 | AU63: 0 | AV63: 200.0016 | BA63: 300.0036 | BB63: 143923.8199 | BC63: 0 | BD63: 200.0016
A64: 100.0004 | M64: 100.0004 | N64: 155865.7442 | O64: 0 | P64: 0 | U64: 100.0004 | V64: 155865.7442 | W64: 0 | X64: 0 | AC64: 100.0004 | AD64: 155865.7442 | AE64: 0 | AF64: 0 | AK64: 100.0004 | AL64: 155865.7442 | AM64: 0 | AN64: 0 | AS64: 100.0004 | AT64: 155865.7442 | AU64: 0 | AV64: 0 | BA64: 100.0004 | BB64: 155865.7442 | BC64: 0 | BD64: 0
A65: 300.0036 | M65: 300.0036 | N65: 145542.3994 | O65: 0 | P65: 200.0016 | U65: 300.0036 | V65: 145542.3994 | W65: 0 | X65: 200.0016 | AC65: 300.0036 | AD65: 145542.3994 | AE65: 0 | AF65: 200.0016 | AK65: 300.0036 | AL65: 145542.3994 | AM65: 0 | AN65: 200.0016 | AS65: 300.0036 | AT65: 145542.3994 | AU65: 0 | AV65: 200.0016 | BA65: 300.0036 | BB65: 145542.3994 | BC65: 0 | BD65: 200.0016
A66: 0 | M66: 0 | N66: 153739.6568 | O66: 0 | P66: 500.0100002 | U66: 0 | V66: 153739.6568 | W66: 0 | X66: 500.0100002 | AC66: 0 | AD66: 153739.6568 | AE66: 0 | AF66: 500.0100002 | AK66: 0 | AL66: 153739.6568 | AM66: 0 | AN66: 500.0100002 | AS66: 0 | AT66: 153739.6568 | AU66: 0 | AV66: 500.0100002 | BA66: 0 | BB66: 153739.6568 | BC66: 0 | BD66: 500.0100002
A67: 0 | M67: 0 | N67: 152828.5865 | O67: 0 | P67: 200.0016 | U67: =IF(M67="","",IF(M67<Q$3+5*Q$7,M67,"")) -> 0 | V67: =IF(N67="","",IF(N67<R$3+5*R$7,N67,"")) -> 152828.5865 | W67: =IF(O67="","",IF(O67<S$3+5*S$7,O67,"")) -> 0 | X67: =IF(P67="","",IF(P67<T$3+5*T$7,P67,"")) -> 200.0016 | AC67: =IF(U67="","",IF(U67<Y$3+5*Y$7,U67,"")) -> 0 | AD67: =IF(V67="","",IF(V67<Z$3+5*Z$7,V67,"")) -> 152828.5865 | AE67: =IF(W67="","",IF(W67<AA$3+5*AA$7,W67,"")) -> 0 | AF67: =IF(X67="","",IF(X67<AB$3+5*AB$7,X67,"")) -> 200.0016 | AK67: =IF(AC67="","",IF(AC67<AG$3+5*AG$7,AC67,"")) -> 0 | AL67: =IF(AD67="","",IF(AD67<AH$3+5*AH$7,AD67,"")) -> 152828.5865 | AM67: =IF(AE67="","",IF(AE67<AI$3+5*AI$7,AE67,"")) -> 0 | AN67: =IF(AF67="","",IF(AF67<AJ$3+5*AJ$7,AF67,"")) -> 200.0016 | AS67: =IF(AK67="","",IF(AK67<AO$3+5*AO$7,AK67,"")) -> 0 | AT67: =IF(AL67="","",IF(AL67<AP$3+5*AP$7,AL67,"")) -> 152828.5865 | AU67: =IF(AM67="","",IF(AM67<AQ$3+5*AQ$7,AM67,"")) -> 0 | AV67: =IF(AN67="","",IF(AN67<AR$3+5*AR$7,AN67,"")) -> 200.0016 | BA67: =IF(AS67="","",IF(AS67<AW$3+5*AW$7,AS67,"")) -> 0 | BB67: =IF(AT67="","",IF(AT67<AX$3+5*AX$7,AT67,"")) -> 152828.5865 | BC67: =IF(AU67="","",IF(AU67<AY$3+5*AY$7,AU67,"")) -> 0 | BD67: =IF(AV67="","",IF(AV67<AZ$3+5*AZ$7,AV67,"")) -> 200.0016 | BU67: =IF(O67<$BG$3,"",O67) ->  | BV67: =IF(P67<$BH$3,"",P67) -> 
A68: 300.0036 | M68: 300.0036 | N68: 151512.7126 | O68: 0 | P68: 200.0016 | U68: 300.0036 | V68: 151512.7126 | W68: 0 | X68: 200.0016 | AC68: 300.0036 | AD68: 151512.7126 | AE68: 0 | AF68: 200.0016 | AK68: 300.0036 | AL68: 151512.7126 | AM68: 0 | AN68: 200.0016 | AS68: 300.0036 | AT68: 151512.7126 | AU68: 0 | AV68: 200.0016 | BA68: 300.0036 | BB68: 151512.7126 | BC68: 0 | BD68: 200.0016
A69: 300.0036 | M69: 300.0036 | N69: 145744.7365 | O69: 0 | P69: 200.0016 | U69: 300.0036 | V69: 145744.7365 | W69: 0 | X69: 200.0016 | AC69: 300.0036 | AD69: 145744.7365 | AE69: 0 | AF69: 200.0016 | AK69: 300.0036 | AL69: 145744.7365 | AM69: 0 | AN69: 200.0016 | AS69: 300.0036 | AT69: 145744.7365 | AU69: 0 | AV69: 200.0016 | BA69: 300.0036 | BB69: 145744.7365 | BC69: 0 | BD69: 200.0016
A70: 200.0016 | M70: 200.0016 | N70: 154549.5525 | O70: 0 | P70: 0 | U70: 200.0016 | V70: 154549.5525 | W70: 0 | X70: 0 | AC70: 200.0016 | AD70: 154549.5525 | AE70: 0 | AF70: 0 | AK70: 200.0016 | AL70: 154549.5525 | AM70: 0 | AN70: 0 | AS70: 200.0016 | AT70: 154549.5525 | AU70: 0 | AV70: 0 | BA70: 200.0016 | BB70: 154549.5525 | BC70: 0 | BD70: 0
A71: 200.0016 | M71: 200.0016 | N71: 134823.1916 | O71: 0 | P71: 100.0004 | U71: 200.0016 | V71: 134823.1916 | W71: 0 | X71: 100.0004 | AC71: 200.0016 | AD71: 134823.1916 | AE71: 0 | AF71: 100.0004 | AK71: 200.0016 | AL71: 134823.1916 | AM71: 0 | AN71: 100.0004 | AS71: 200.0016 | AT71: 134823.1916 | AU71: 0 | AV71: 100.0004 | BA71: 200.0016 | BB71: 134823.1916 | BC71: 0 | BD71: 100.0004
A72: 0 | M72: 0 | N72: 145845.9063 | O72: 0 | P72: 100.0004 | U72: 0 | V72: 145845.9063 | W72: 0 | X72: 100.0004 | AC72: 0 | AD72: 145845.9063 | AE72: 0 | AF72: 100.0004 | AK72: 0 | AL72: 145845.9063 | AM72: 0 | AN72: 100.0004 | AS72: 0 | AT72: 145845.9063 | AU72: 0 | AV72: 100.0004 | BA72: 0 | BB72: 145845.9063 | BC72: 0 | BD72: 100.0004
A73: 100.0004 | M73: 100.0004 | N73: 143215.757 | O73: 0 | P73: 200.0016 | U73: 100.0004 | V73: 143215.757 | W73: 0 | X73: 200.0016 | AC73: 100.0004 | AD73: 143215.757 | AE73: 0 | AF73: 200.0016 | AK73: 100.0004 | AL73: 143215.757 | AM73: 0 | AN73: 200.0016 | AS73: 100.0004 | AT73: 143215.757 | AU73: 0 | AV73: 200.0016 | BA73: 100.0004 | BB73: 143215.757 | BC73: 0 | BD73: 200.0016
A74: 300.0036 | M74: 300.0036 | N74: 139777.161 | O74: 0 | P74: 500.0100002 | U74: 300.0036 | V74: 139777.161 | W74: 0 | X74: 500.0100002 | AC74: 300.0036 | AD74: 139777.161 | AE74: 0 | AF74: 500.0100002 | AK74: 300.0036 | AL74: 139777.161 | AM74: 0 | AN74: 500.0100002 | AS74: 300.0036 | AT74: 139777.161 | AU74: 0 | AV74: 500.0100002 | BA74: 300.0036 | BB74: 139777.161 | BC74: 0 | BD74: 500.0100002
A75: 64566.32285 | M75: 64566.32285 | N75: 140485.0303 | O75: 0 | P75: 300.0036 | U75: 64566.32285 | V75: 140485.0303 | W75: 0 | X75: 300.0036 | AD75: 140485.0303 | AE75: 0 | AF75: 300.0036 | AL75: 140485.0303 | AM75: 0 | AN75: 300.0036 | AT75: 140485.0303 | AU75: 0 | AV75: 300.0036 | BB75: 140485.0303 | BC75: 0 | BD75: 300.0036
A76: 100.0004 | M76: 100.0004 | N76: 156372.0084 | O76: 0 | P76: 0 | U76: 100.0004 | V76: 156372.0084 | W76: 0 | X76: 0 | AC76: 100.0004 | AD76: 156372.0084 | AE76: 0 | AF76: 0 | AK76: 100.0004 | AL76: 156372.0084 | AM76: 0 | AN76: 0 | AS76: 100.0004 | AT76: 156372.0084 | AU76: 0 | AV76: 0 | BA76: 100.0004 | BB76: 156372.0084 | BC76: 0 | BD76: 0
A77: 300.0036 | M77: 300.0036 | N77: 137350.483 | O77: 0 | P77: 300.0036 | U77: 300.0036 | V77: 137350.483 | W77: 0 | X77: 300.0036 | AC77: 300.0036 | AD77: 137350.483 | AE77: 0 | AF77: 300.0036 | AK77: 300.0036 | AL77: 137350.483 | AM77: 0 | AN77: 300.0036 | AS77: 300.0036 | AT77: 137350.483 | AU77: 0 | AV77: 300.0036 | BA77: 300.0036 | BB77: 137350.483 | BC77: 0 | BD77: 300.0036
A78: 200.0016 | M78: 200.0016 | N78: 139676.0401 | O78: 0 | P78: 100.0004 | U78: 200.0016 | V78: 139676.0401 | W78: 0 | X78: 100.0004 | AC78: 200.0016 | AD78: 139676.0401 | AE78: 0 | AF78: 100.0004 | AK78: 200.0016 | AL78: 139676.0401 | AM78: 0 | AN78: 100.0004 | AS78: 200.0016 | AT78: 139676.0401 | AU78: 0 | AV78: 100.0004 | BA78: 200.0016 | BB78: 139676.0401 | BC78: 0 | BD78: 100.0004
A79: 200.0016 | M79: 200.0016 | N79: 150399.3883 | O79: 100.0004 | P79: 100.0004 | U79: 200.0016 | V79: 150399.3883 | W79: 100.0004 | X79: 100.0004 | AC79: 200.0016 | AD79: 150399.3883 | AE79: 100.0004 | AF79: 100.0004 | AK79: 200.0016 | AL79: 150399.3883 | AM79: 100.0004 | AN79: 100.0004 | AS79: 200.0016 | AT79: 150399.3883 | AU79: 100.0004 | AV79: 100.0004 | BA79: 200.0016 | BB79: 150399.3883 | BC79: 100.0004 | BD79: 100.0004
A80: 300.0036 | M80: 300.0036 | N80: 140080.5287 | O80: 100.0004 | P80: 200.0016 | U80: 300.0036 | V80: 140080.5287 | W80: 100.0004 | X80: 200.0016 | AC80: 300.0036 | AD80: 140080.5287 | AE80: 100.0004 | AF80: 200.0016 | AK80: 300.0036 | AL80: 140080.5287 | AM80: 100.0004 | AN80: 200.0016 | AS80: 300.0036 | AT80: 140080.5287 | AU80: 100.0004 | AV80: 200.0016 | BA80: 300.0036 | BB80: 140080.5287 | BC80: 100.0004 | BD80: 200.0016
A81: 200.0016 | M81: 200.0016 | N81: 148476.6059 | O81: 0 | P81: 300.0036 | U81: 200.0016 | V81: 148476.6059 | W81: 0 | X81: 300.0036 | AC81: 200.0016 | AD81: 148476.6059 | AE81: 0 | AF81: 300.0036 | AK81: 200.0016 | AL81: 148476.6059 | AM81: 0 | AN81: 300.0036 | AS81: 200.0016 | AT81: 148476.6059 | AU81: 0 | AV81: 300.0036 | BA81: 200.0016 | BB81: 148476.6059 | BC81: 0 | BD81: 300.0036
A82: 300.0036 | M82: 300.0036 | N82: 142305.4488 | O82: 0 | P82: 0 | U82: 300.0036 | V82: 142305.4488 | W82: 0 | X82: 0 | AC82: 300.0036 | AD82: 142305.4488 | AE82: 0 | AF82: 0 | AK82: 300.0036 | AL82: 142305.4488 | AM82: 0 | AN82: 0 | AS82: 300.0036 | AT82: 142305.4488 | AU82: 0 | AV82: 0 | BA82: 300.0036 | BB82: 142305.4488 | BC82: 0 | BD82: 0
A83: 200.0016 | M83: 200.0016 | N83: 157688.3908 | O83: 0 | P83: 26427.90787 | U83: 200.0016 | V83: 157688.3908 | W83: 0 | X83: 26427.90787 | AC83: 200.0016 | AD83: 157688.3908 | AE83: 0 | AK83: 200.0016 | AL83: 157688.3908 | AM83: 0 | AS83: 200.0016 | AT83: 157688.3908 | AU83: 0 | BA83: 200.0016 | BB83: 157688.3908 | BC83: 0 | BV83: 26427.90787
A84: 300.0036 | M84: 300.0036 | N84: 160524.144 | O84: 0 | P84: 100.0004 | U84: 300.0036 | V84: 160524.144 | W84: 0 | X84: 100.0004 | AC84: 300.0036 | AD84: 160524.144 | AE84: 0 | AF84: 100.0004 | AK84: 300.0036 | AL84: 160524.144 | AM84: 0 | AN84: 100.0004 | AS84: 300.0036 | AT84: 160524.144 | AU84: 0 | AV84: 100.0004 | BA84: 300.0036 | BB84: 160524.144 | BC84: 0 | BD84: 100.0004
A85: 100.0004 | M85: 100.0004 | N85: 160220.2828 | O85: 0 | P85: 0 | U85: 100.0004 | V85: 160220.2828 | W85: 0 | X85: 0 | AC85: 100.0004 | AD85: 160220.2828 | AE85: 0 | AF85: 0 | AK85: 100.0004 | AL85: 160220.2828 | AM85: 0 | AN85: 0 | AS85: 100.0004 | AT85: 160220.2828 | AU85: 0 | AV85: 0 | BA85: 100.0004 | BB85: 160220.2828 | BC85: 0 | BD85: 0
A86: 200.0016 | M86: 200.0016 | N86: 147667.1012 | O86: 0 | P86: 200.0016 | U86: 200.0016 | V86: 147667.1012 | W86: 0 | X86: 200.0016 | AC86: 200.0016 | AD86: 147667.1012 | AE86: 0 | AF86: 200.0016 | AK86: 200.0016 | AL86: 147667.1012 | AM86: 0 | AN86: 200.0016 | AS86: 200.0016 | AT86: 147667.1012 | AU86: 0 | AV86: 200.0016 | BA86: 200.0016 | BB86: 147667.1012 | BC86: 0 | BD86: 200.0016
A87: 100.0004 | M87: 100.0004 | N87: 166602.9113 | O87: 0 | P87: 300.0036 | U87: 100.0004 | V87: 166602.9113 | W87: 0 | X87: 300.0036 | AC87: 100.0004 | AD87: 166602.9113 | AE87: 0 | AF87: 300.0036 | AK87: 100.0004 | AL87: 166602.9113 | AM87: 0 | AN87: 300.0036 | AS87: 100.0004 | AT87: 166602.9113 | AU87: 0 | AV87: 300.0036 | BA87: 100.0004 | BB87: 166602.9113 | BC87: 0 | BD87: 300.0036
A88: 0 | M88: 0 | N88: 161233.1822 | O88: 100.0004 | P88: 100.0004 | U88: 0 | V88: 161233.1822 | W88: 100.0004 | X88: 100.0004 | AC88: 0 | AD88: 161233.1822 | AE88: 100.0004 | AF88: 100.0004 | AK88: 0 | AL88: 161233.1822 | AM88: 100.0004 | AN88: 100.0004 | AS88: 0 | AT88: 161233.1822 | AU88: 100.0004 | AV88: 100.0004 | BA88: 0 | BB88: 161233.1822 | BC88: 100.0004 | BD88: 100.0004
A89: 100.0004 | M89: 100.0004 | N89: 158093.4593 | O89: 200.0016 | P89: 100.0004 | U89: 100.0004 | V89: 158093.4593 | W89: 200.0016 | X89: 100.0004 | AC89: 100.0004 | AD89: 158093.4593 | AE89: 200.0016 | AF89: 100.0004 | AK89: 100.0004 | AL89: 158093.4593 | AM89: 200.0016 | AN89: 100.0004 | AS89: 100.0004 | AT89: 158093.4593 | AU89: 200.0016 | AV89: 100.0004 | BA89: 100.0004 | BB89: 158093.4593 | BC89: 200.0016 | BD89: 100.0004
A90: 100.0004 | M90: 100.0004 | N90: 155460.7474 | O90: 400.0064001 | P90: 200.0016 | U90: 100.0004 | V90: 155460.7474 | W90: 400.0064001 | X90: 200.0016 | AC90: 100.0004 | AD90: 155460.7474 | AE90: 400.0064001 | AF90: 200.0016 | AK90: 100.0004 | AL90: 155460.7474 | AM90: 400.0064001 | AN90: 200.0016 | AS90: 100.0004 | AT90: 155460.7474 | AU90: 400.0064001 | AV90: 200.0016 | BA90: 100.0004 | BB90: 155460.7474 | BC90: 400.0064001 | BD90: 200.0016
A91: 100.0004 | M91: 100.0004 | N91: 168021.713 | O91: 600.0144003 | P91: 600.0144003 | U91: 100.0004 | V91: 168021.713 | W91: 600.0144003 | X91: 600.0144003 | AC91: 100.0004 | AD91: 168021.713 | AE91: 600.0144003 | AF91: 600.0144003 | AK91: 100.0004 | AL91: 168021.713 | AM91: 600.0144003 | AN91: 600.0144003 | AS91: 100.0004 | AT91: 168021.713 | AU91: 600.0144003 | AV91: 600.0144003 | BA91: 100.0004 | BB91: 168021.713 | BC91: 600.0144003 | BD91: 600.0144003
A92: 0 | M92: 0 | N92: 170352.9488 | O92: 100.0004 | P92: 0 | U92: 0 | V92: 170352.9488 | W92: 100.0004 | X92: 0 | AC92: 0 | AD92: 170352.9488 | AE92: 100.0004 | AF92: 0 | AK92: 0 | AL92: 170352.9488 | AM92: 100.0004 | AN92: 0 | AS92: 0 | AT92: 170352.9488 | AU92: 100.0004 | AV92: 0 | BA92: 0 | BB92: 170352.9488 | BC92: 100.0004 | BD92: 0
A93: 100.0004 | M93: 100.0004 | N93: 164069.7347 | O93: 500.0100002 | P93: 100.0004 | U93: 100.0004 | V93: 164069.7347 | W93: 500.0100002 | X93: 100.0004 | AC93: 100.0004 | AD93: 164069.7347 | AE93: 500.0100002 | AF93: 100.0004 | AK93: 100.0004 | AL93: 164069.7347 | AM93: 500.0100002 | AN93: 100.0004 | AS93: 100.0004 | AT93: 164069.7347 | AU93: 500.0100002 | AV93: 100.0004 | BA93: 100.0004 | BB93: 164069.7347 | BC93: 500.0100002 | BD93: 100.0004
A94: 300.0036 | M94: 300.0036 | N94: 160118.9973 | O94: 300.0036 | P94: 200.0016 | U94: 300.0036 | V94: 160118.9973 | W94: 300.0036 | X94: 200.0016 | AC94: 300.0036 | AD94: 160118.9973 | AE94: 300.0036 | AF94: 200.0016 | AK94: 300.0036 | AL94: 160118.9973 | AM94: 300.0036 | AN94: 200.0016 | AS94: 300.0036 | AT94: 160118.9973 | AU94: 300.0036 | AV94: 200.0016 | BA94: 300.0036 | BB94: 160118.9973 | BC94: 300.0036 | BD94: 200.0016
A95: 200.0016 | M95: 200.0016 | N95: 152626.1354 | O95: 200.0016 | P95: 400.0064001 | U95: 200.0016 | V95: 152626.1354 | W95: 200.0016 | X95: 400.0064001 | AC95: 200.0016 | AD95: 152626.1354 | AE95: 200.0016 | AF95: 400.0064001 | AK95: 200.0016 | AL95: 152626.1354 | AM95: 200.0016 | AN95: 400.0064001 | AS95: 200.0016 | AT95: 152626.1354 | AU95: 200.0016 | AV95: 400.0064001 | BA95: 200.0016 | BB95: 152626.1354 | BC95: 200.0016 | BD95: 400.0064001
A96: 34347.12425 | M96: 34347.12425 | N96: 161739.6626 | O96: 400.0064001 | P96: 0 | U96: 34347.12425 | V96: 161739.6626 | W96: 400.0064001 | X96: 0 | AC96: 34347.12425 | AD96: 161739.6626 | AE96: 400.0064001 | AF96: 0 | AK96: 34347.12425 | AL96: 161739.6626 | AM96: 400.0064001 | AN96: 0 | AT96: 161739.6626 | AU96: 400.0064001 | AV96: 0 | BB96: 161739.6626 | BC96: 400.0064001 | BD96: 0
A97: 28933.44706 | M97: 28933.44706 | N97: 162144.8615 | O97: 500.0100002 | P97: 100.0004 | U97: 28933.44706 | V97: 162144.8615 | W97: 500.0100002 | X97: 100.0004 | AC97: 28933.44706 | AD97: 162144.8615 | AE97: 500.0100002 | AF97: 100.0004 | AK97: 28933.44706 | AL97: 162144.8615 | AM97: 500.0100002 | AN97: 100.0004 | AT97: 162144.8615 | AU97: 500.0100002 | AV97: 100.0004 | BB97: 162144.8615 | BC97: 500.0100002 | BD97: 100.0004
A98: 200.0016 | M98: 200.0016 | N98: 160321.569 | O98: 500.0100002 | P98: 400.0064001 | U98: 200.0016 | V98: 160321.569 | W98: 500.0100002 | X98: 400.0064001 | AC98: 200.0016 | AD98: 160321.569 | AE98: 500.0100002 | AF98: 400.0064001 | AK98: 200.0016 | AL98: 160321.569 | AM98: 500.0100002 | AN98: 400.0064001 | AS98: 200.0016 | AT98: 160321.569 | AU98: 500.0100002 | AV98: 400.0064001 | BA98: 200.0016 | BB98: 160321.569 | BC98: 500.0100002 | BD98: 400.0064001
A99: 100.0004 | M99: 100.0004 | N99: 157688.3908 | O99: 200.0016 | P99: 200.0016 | U99: 100.0004 | V99: 157688.3908 | W99: 200.0016 | X99: 200.0016 | AC99: 100.0004 | AD99: 157688.3908 | AE99: 200.0016 | AF99: 200.0016 | AK99: 100.0004 | AL99: 157688.3908 | AM99: 200.0016 | AN99: 200.0016 | AS99: 100.0004 | AT99: 157688.3908 | AU99: 200.0016 | AV99: 200.0016 | BA99: 100.0004 | BB99: 157688.3908 | BC99: 200.0016 | BD99: 200.0016
A100: 300.0036 | M100: 300.0036 | N100: 154650.7931 | O100: 800.0256008 | P100: 100.0004 | U100: 300.0036 | V100: 154650.7931 | W100: 800.0256008 | X100: 100.0004 | AC100: 300.0036 | AD100: 154650.7931 | AE100: 800.0256008 | AF100: 100.0004 | AK100: 300.0036 | AL100: 154650.7931 | AM100: 800.0256008 | AN100: 100.0004 | AS100: 300.0036 | AT100: 154650.7931 | AU100: 800.0256008 | AV100: 100.0004 | BA100: 300.0036 | BB100: 154650.7931 | BC100: 800.0256008 | BD100: 100.0004
A101: 0 | M101: 0 | N101: 141496.3414 | O101: 700.0196005 | P101: 200.0016 | U101: 0 | V101: 141496.3414 | W101: 700.0196005 | X101: 200.0016 | AC101: 0 | AD101: 141496.3414 | AE101: 700.0196005 | AF101: 200.0016 | AK101: 0 | AL101: 141496.3414 | AM101: 700.0196005 | AN101: 200.0016 | AS101: 0 | AT101: 141496.3414 | AU101: 700.0196005 | AV101: 200.0016 | BA101: 0 | BB101: 141496.3414 | BC101: 700.0196005 | BD101: 200.0016
A102: 0 | M102: 0 | N102: 143620.3595 | O102: 400.0064001 | P102: 200.0016 | U102: 0 | V102: 143620.3595 | W102: 400.0064001 | X102: 200.0016 | AC102: 0 | AD102: 143620.3595 | AE102: 400.0064001 | AF102: 200.0016 | AK102: 0 | AL102: 143620.3595 | AM102: 400.0064001 | AN102: 200.0016 | AS102: 0 | AT102: 143620.3595 | AU102: 400.0064001 | AV102: 200.0016 | BA102: 0 | BB102: 143620.3595 | BC102: 400.0064001 | BD102: 200.0016
A103: 200.0016 | M103: 200.0016 | N103: 145947.0768 | O103: 300.0036 | P103: 200.0016 | U103: 200.0016 | V103: 145947.0768 | W103: 300.0036 | X103: 200.0016 | AC103: 200.0016 | AD103: 145947.0768 | AE103: 300.0036 | AF103: 200.0016 | AK103: 200.0016 | AL103: 145947.0768 | AM103: 300.0036 | AN103: 200.0016 | AS103: 200.0016 | AT103: 145947.0768 | AU103: 300.0036 | AV103: 200.0016 | BA103: 200.0016 | BB103: 145947.0768 | BC103: 300.0036 | BD103: 200.0016
A104: 100.0004 | M104: 100.0004 | N104: 144227.2877 | O104: 800.0256008 | P104: 600.0144003 | U104: 100.0004 | V104: 144227.2877 | W104: 800.0256008 | X104: 600.0144003 | AC104: 100.0004 | AD104: 144227.2877 | AE104: 800.0256008 | AF104: 600.0144003 | AK104: 100.0004 | AL104: 144227.2877 | AM104: 800.0256008 | AN104: 600.0144003 | AS104: 100.0004 | AT104: 144227.2877 | AU104: 800.0256008 | AV104: 600.0144003 | BA104: 100.0004 | BB104: 144227.2877 | BC104: 800.0256008 | BD104: 600.0144003
A105: 100.0004 | M105: 100.0004 | N105: 138765.9883 | O105: 700.0196005 | P105: 300.0036 | U105: 100.0004 | V105: 138765.9883 | W105: 700.0196005 | X105: 300.0036 | AC105: 100.0004 | AD105: 138765.9883 | AE105: 700.0196005 | AF105: 300.0036 | AK105: 100.0004 | AL105: 138765.9883 | AM105: 700.0196005 | AN105: 300.0036 | AS105: 100.0004 | AT105: 138765.9883 | AU105: 700.0196005 | AV105: 300.0036 | BA105: 100.0004 | BB105: 138765.9883 | BC105: 700.0196005 | BD105: 300.0036
A106: 200.0016 | M106: 200.0016 | N106: 136238.4122 | O106: 600.0144003 | P106: 200.0016 | U106: 200.0016 | V106: 136238.4122 | W106: 600.0144003 | X106: 200.0016 | AC106: 200.0016 | AD106: 136238.4122 | AE106: 600.0144003 | AF106: 200.0016 | AK106: 200.0016 | AL106: 136238.4122 | AM106: 600.0144003 | AN106: 200.0016 | AS106: 200.0016 | AT106: 136238.4122 | AU106: 600.0144003 | AV106: 200.0016 | BA106: 200.0016 | BB106: 136238.4122 | BC106: 600.0144003 | BD106: 200.0016
A107: 300.0036 | M107: 300.0036 | N107: 146554.1174 | O107: 800.0256008 | P107: 100.0004 | U107: 300.0036 | V107: 146554.1174 | W107: 800.0256008 | X107: 100.0004 | AC107: 300.0036 | AD107: 146554.1174 | AE107: 800.0256008 | AF107: 100.0004 | AK107: 300.0036 | AL107: 146554.1174 | AM107: 800.0256008 | AN107: 100.0004 | AS107: 300.0036 | AT107: 146554.1174 | AU107: 800.0256008 | AV107: 100.0004 | BA107: 300.0036 | BB107: 146554.1174 | BC107: 800.0256008 | BD107: 100.0004
A108: 200.0016 | M108: 200.0016 | N108: 146351.7673 | O108: 600.0144003 | P108: 300.0036 | U108: 200.0016 | V108: 146351.7673 | W108: 600.0144003 | X108: 300.0036 | AC108: 200.0016 | AD108: 146351.7673 | AE108: 600.0144003 | AF108: 300.0036 | AK108: 200.0016 | AL108: 146351.7673 | AM108: 600.0144003 | AN108: 300.0036 | AS108: 200.0016 | AT108: 146351.7673 | AU108: 600.0144003 | AV108: 300.0036 | BA108: 200.0016 | BB108: 146351.7673 | BC108: 600.0144003 | BD108: 300.0036
A109: 200.0016 | M109: 200.0016 | N109: 152929.8133 | O109: 800.0256008 | P109: 300.0036 | U109: 200.0016 | V109: 152929.8133 | W109: 800.0256008 | X109: 300.0036 | AC109: 200.0016 | AD109: 152929.8133 | AE109: 800.0256008 | AF109: 300.0036 | AK109: 200.0016 | AL109: 152929.8133 | AM109: 800.0256008 | AN109: 300.0036 | AS109: 200.0016 | AT109: 152929.8133 | AU109: 800.0256008 | AV109: 300.0036 | BA109: 200.0016 | BB109: 152929.8133 | BC109: 800.0256008 | BD109: 300.0036
A110: 300.0036 | M110: 300.0036 | N110: 153132.2693 | O110: 500.0100002 | P110: 200.0016 | U110: 300.0036 | V110: 153132.2693 | W110: 500.0100002 | X110: 200.0016 | AC110: 300.0036 | AD110: 153132.2693 | AE110: 500.0100002 | AF110: 200.0016 | AK110: 300.0036 | AL110: 153132.2693 | AM110: 500.0100002 | AN110: 200.0016 | AS110: 300.0036 | AT110: 153132.2693 | AU110: 500.0100002 | AV110: 200.0016 | BA110: 300.0036 | BB110: 153132.2693 | BC110: 500.0100002 | BD110: 200.0016
A111: 100.0004 | M111: 100.0004 | N111: 147970.6594 | O111: 300.0036 | P111: 100.0004 | U111: 100.0004 | V111: 147970.6594 | W111: 300.0036 | X111: 100.0004 | AC111: 100.0004 | AD111: 147970.6594 | AE111: 300.0036 | AF111: 100.0004 | AK111: 100.0004 | AL111: 147970.6594 | AM111: 300.0036 | AN111: 100.0004 | AS111: 100.0004 | AT111: 147970.6594 | AU111: 300.0036 | AV111: 100.0004 | BA111: 100.0004 | BB111: 147970.6594 | BC111: 300.0036 | BD111: 100.0004
A112: 0 | M112: 0 | N112: 155258.2539 | O112: 300.0036 | P112: 0 | U112: 0 | V112: 155258.2539 | W112: 300.0036 | X112: 0 | AC112: 0 | AD112: 155258.2539 | AE112: 300.0036 | AF112: 0 | AK112: 0 | AL112: 155258.2539 | AM112: 300.0036 | AN112: 0 | AS112: 0 | AT112: 155258.2539 | AU112: 300.0036 | AV112: 0 | BA112: 0 | BB112: 155258.2539 | BC112: 300.0036 | BD112: 0
A113: 400.0064001 | M113: 400.0064001 | N113: 150095.7716 | O113: 300.0036 | P113: 500.0100002 | U113: 400.0064001 | V113: 150095.7716 | W113: 300.0036 | X113: 500.0100002 | AC113: 400.0064001 | AD113: 150095.7716 | AE113: 300.0036 | AF113: 500.0100002 | AK113: 400.0064001 | AL113: 150095.7716 | AM113: 300.0036 | AN113: 500.0100002 | AS113: 400.0064001 | AT113: 150095.7716 | AU113: 300.0036 | AV113: 500.0100002 | BA113: 400.0064001 | BB113: 150095.7716 | BC113: 300.0036 | BD113: 500.0100002
A114: 100.0004 | M114: 100.0004 | N114: 144733.0836 | O114: 100.0004 | P114: 0 | U114: 100.0004 | V114: 144733.0836 | W114: 100.0004 | X114: 0 | AC114: 100.0004 | AD114: 144733.0836 | AE114: 100.0004 | AF114: 0 | AK114: 100.0004 | AL114: 144733.0836 | AM114: 100.0004 | AN114: 0 | AS114: 100.0004 | AT114: 144733.0836 | AU114: 100.0004 | AV114: 0 | BA114: 100.0004 | BB114: 144733.0836 | BC114: 100.0004 | BD114: 0
A115: 1100.048402 | M115: 1100.048402 | N115: 152626.1354 | O115: 300.0036 | P115: 200.0016 | U115: 1100.048402 | V115: 152626.1354 | W115: 300.0036 | X115: 200.0016 | AC115: 1100.048402 | AD115: 152626.1354 | AE115: 300.0036 | AF115: 200.0016 | AK115: 1100.048402 | AL115: 152626.1354 | AM115: 300.0036 | AN115: 200.0016 | AS115: 1100.048402 | AT115: 152626.1354 | AU115: 300.0036 | AV115: 200.0016 | BA115: 1100.048402 | BB115: 152626.1354 | BC115: 300.0036 | BD115: 200.0016
A116: 56527.5261 | M116: 56527.5261 | N116: 158498.5408 | O116: 100.0004 | P116: 0 | U116: 56527.5261 | V116: 158498.5408 | W116: 100.0004 | X116: 0 | AC116: 56527.5261 | AD116: 158498.5408 | AE116: 100.0004 | AF116: 0 | AL116: 158498.5408 | AM116: 100.0004 | AN116: 0 | AT116: 158498.5408 | AU116: 100.0004 | AV116: 0 | BB116: 158498.5408 | BC116: 100.0004 | BD116: 0
A117: 300.0036 | M117: 300.0036 | N117: 156574.5198 | O117: 200.0016 | P117: 200.0016 | U117: 300.0036 | V117: 156574.5198 | W117: 200.0016 | X117: 200.0016 | AC117: 300.0036 | AD117: 156574.5198 | AE117: 200.0016 | AF117: 200.0016 | AK117: 300.0036 | AL117: 156574.5198 | AM117: 200.0016 | AN117: 200.0016 | AS117: 300.0036 | AT117: 156574.5198 | AU117: 200.0016 | AV117: 200.0016 | BA117: 300.0036 | BB117: 156574.5198 | BC117: 200.0016 | BD117: 200.0016
A118: 300.0036 | M118: 300.0036 | N118: 157080.8126 | O118: 200.0016 | P118: 300.0036 | U118: 300.0036 | V118: 157080.8126 | W118: 200.0016 | X118: 300.0036 | AC118: 300.0036 | AD118: 157080.8126 | AE118: 200.0016 | AF118: 300.0036 | AK118: 300.0036 | AL118: 157080.8126 | AM118: 200.0016 | AN118: 300.0036 | AS118: 300.0036 | AT118: 157080.8126 | AU118: 200.0016 | AV118: 300.0036 | BA118: 300.0036 | BB118: 157080.8126 | BC118: 200.0016 | BD118: 300.0036
A119: 100.0004 | M119: 100.0004 | N119: 147970.6594 | O119: 300.0036 | P119: 100.0004 | U119: 100.0004 | V119: 147970.6594 | W119: 300.0036 | X119: 100.0004 | AC119: 100.0004 | AD119: 147970.6594 | AE119: 300.0036 | AF119: 100.0004 | AK119: 100.0004 | AL119: 147970.6594 | AM119: 300.0036 | AN119: 100.0004 | AS119: 100.0004 | AT119: 147970.6594 | AU119: 300.0036 | AV119: 100.0004 | BA119: 100.0004 | BB119: 147970.6594 | BC119: 300.0036 | BD119: 100.0004
A120: 200.0016 | M120: 200.0016 | N120: 148881.3778 | O120: 200.0016 | P120: 100.0004 | U120: 200.0016 | V120: 148881.3778 | W120: 200.0016 | X120: 100.0004 | AC120: 200.0016 | AD120: 148881.3778 | AE120: 200.0016 | AF120: 100.0004 | AK120: 200.0016 | AL120: 148881.3778 | AM120: 200.0016 | AN120: 100.0004 | AS120: 200.0016 | AT120: 148881.3778 | AU120: 200.0016 | AV120: 100.0004 | BA120: 200.0016 | BB120: 148881.3778 | BC120: 200.0016 | BD120: 100.0004
A121: 0 | M121: 0 | N121: 150298.1819 | O121: 200.0016 | P121: 100.0004 | U121: 0 | V121: 150298.1819 | W121: 200.0016 | X121: 100.0004 | AC121: 0 | AD121: 150298.1819 | AE121: 200.0016 | AF121: 100.0004 | AK121: 0 | AL121: 150298.1819 | AM121: 200.0016 | AN121: 100.0004 | AS121: 0 | AT121: 150298.1819 | AU121: 200.0016 | AV121: 100.0004 | BA121: 0 | BB121: 150298.1819 | BC121: 200.0016 | BD121: 100.0004
A122: 300.0036 | M122: 300.0036 | N122: 151512.7126 | O122: 500.0100002 | P122: 0 | U122: 300.0036 | V122: 151512.7126 | W122: 500.0100002 | X122: 0 | AC122: 300.0036 | AD122: 151512.7126 | AE122: 500.0100002 | AF122: 0 | AK122: 300.0036 | AL122: 151512.7126 | AM122: 500.0100002 | AN122: 0 | AS122: 300.0036 | AT122: 151512.7126 | AU122: 500.0100002 | AV122: 0 | BA122: 300.0036 | BB122: 151512.7126 | BC122: 500.0100002 | BD122: 0
A123: 2800.313635 | M123: 2800.313635 | N123: 142912.3136 | O123: 600.0144003 | P123: 200.0016 | U123: 2800.313635 | V123: 142912.3136 | W123: 600.0144003 | X123: 200.0016 | AC123: 2800.313635 | AD123: 142912.3136 | AE123: 600.0144003 | AF123: 200.0016 | AK123: 2800.313635 | AL123: 142912.3136 | AM123: 600.0144003 | AN123: 200.0016 | AS123: 2800.313635 | AT123: 142912.3136 | AU123: 600.0144003 | AV123: 200.0016 | BA123: 2800.313635 | BB123: 142912.3136 | BC123: 600.0144003 | BD123: 200.0016
A124: 100.0004 | M124: 100.0004 | N124: 152929.8133 | O124: 200.0016 | P124: 200.0016 | U124: 100.0004 | V124: 152929.8133 | W124: 200.0016 | X124: 200.0016 | AC124: 100.0004 | AD124: 152929.8133 | AE124: 200.0016 | AF124: 200.0016 | AK124: 100.0004 | AL124: 152929.8133 | AM124: 200.0016 | AN124: 200.0016 | AS124: 100.0004 | AT124: 152929.8133 | AU124: 200.0016 | AV124: 200.0016 | BA124: 100.0004 | BB124: 152929.8133 | BC124: 200.0016 | BD124: 200.0016
A125: 200.0016 | M125: 200.0016 | N125: 150601.8036 | O125: 300.0036 | P125: 200.0016 | U125: 200.0016 | V125: 150601.8036 | W125: 300.0036 | X125: 200.0016 | AC125: 200.0016 | AD125: 150601.8036 | AE125: 300.0036 | AF125: 200.0016 | AK125: 200.0016 | AL125: 150601.8036 | AM125: 300.0036 | AN125: 200.0016 | AS125: 200.0016 | AT125: 150601.8036 | AU125: 300.0036 | AV125: 200.0016 | BA125: 200.0016 | BB125: 150601.8036 | BC125: 300.0036 | BD125: 200.0016
A126: 300.0036 | M126: 300.0036 | N126: 152727.3605 | O126: 200.0016 | P126: 200.0016 | U126: 300.0036 | V126: 152727.3605 | W126: 200.0016 | X126: 200.0016 | AC126: 300.0036 | AD126: 152727.3605 | AE126: 200.0016 | AF126: 200.0016 | AK126: 300.0036 | AL126: 152727.3605 | AM126: 200.0016 | AN126: 200.0016 | AS126: 300.0036 | AT126: 152727.3605 | AU126: 200.0016 | AV126: 200.0016 | BA126: 300.0036 | BB126: 152727.3605 | BC126: 200.0016 | BD126: 200.0016
A127: 100.0004 | M127: 100.0004 | N127: 152018.8016 | O127: 100.0004 | P127: 0 | U127: 100.0004 | V127: 152018.8016 | W127: 100.0004 | X127: 0 | AC127: 100.0004 | AD127: 152018.8016 | AE127: 100.0004 | AF127: 0 | AK127: 100.0004 | AL127: 152018.8016 | AM127: 100.0004 | AN127: 0 | AS127: 100.0004 | AT127: 152018.8016 | AU127: 100.0004 | AV127: 0 | BA127: 100.0004 | BB127: 152018.8016 | BC127: 100.0004 | BD127: 0
A128: 200.0016 | M128: 200.0016 | N128: 134115.6411 | O128: 300.0036 | P128: 300.0036 | U128: 200.0016 | V128: 134115.6411 | W128: 300.0036 | X128: 300.0036 | AC128: 200.0016 | AD128: 134115.6411 | AE128: 300.0036 | AF128: 300.0036 | AK128: 200.0016 | AL128: 134115.6411 | AM128: 300.0036 | AN128: 300.0036 | AS128: 200.0016 | AT128: 134115.6411 | AU128: 300.0036 | AV128: 300.0036 | BA128: 200.0016 | BB128: 134115.6411 | BC128: 300.0036 | BD128: 300.0036
A129: 0 | M129: 0 | N129: 151107.856 | O129: 200.0016 | P129: 200.0016 | U129: 0 | V129: 151107.856 | W129: 200.0016 | X129: 200.0016 | AC129: 0 | AD129: 151107.856 | AE129: 200.0016 | AF129: 200.0016 | AK129: 0 | AL129: 151107.856 | AM129: 200.0016 | AN129: 200.0016 | AS129: 0 | AT129: 151107.856 | AU129: 200.0016 | AV129: 200.0016 | BA129: 0 | BB129: 151107.856 | BC129: 200.0016 | BD129: 200.0016
A130: 0 | M130: 0 | N130: 153840.8909 | O130: 200.0016 | P130: 0 | U130: 0 | V130: 153840.8909 | W130: 200.0016 | X130: 0 | AC130: 0 | AD130: 153840.8909 | AE130: 200.0016 | AF130: 0 | AK130: 0 | AL130: 153840.8909 | AM130: 200.0016 | AN130: 0 | AS130: 0 | AT130: 153840.8909 | AU130: 200.0016 | AV130: 0 | BA130: 0 | BB130: 153840.8909 | BC130: 200.0016 | BD130: 0
A131: 0 | M131: 0 | N131: 154347.0736 | O131: 200.0016 | P131: 0 | U131: =IF(M131="","",IF(M131<Q$3+5*Q$7,M131,"")) -> 0 | V131: =IF(N131="","",IF(N131<R$3+5*R$7,N131,"")) -> 154347.0736 | W131: =IF(O131="","",IF(O131<S$3+5*S$7,O131,"")) -> 200.0016 | X131: =IF(P131="","",IF(P131<T$3+5*T$7,P131,"")) -> 0 | AC131: =IF(U131="","",IF(U131<Y$3+5*Y$7,U131,"")) -> 0 | AD131: =IF(V131="","",IF(V131<Z$3+5*Z$7,V131,"")) -> 154347.0736 | AE131: =IF(W131="","",IF(W131<AA$3+5*AA$7,W131,"")) -> 200.0016 | AF131: =IF(X131="","",IF(X131<AB$3+5*AB$7,X131,"")) -> 0 | AK131: =IF(AC131="","",IF(AC131<AG$3+5*AG$7,AC131,"")) -> 0 | AL131: =IF(AD131="","",IF(AD131<AH$3+5*AH$7,AD131,"")) -> 154347.0736 | AM131: =IF(AE131="","",IF(AE131<AI$3+5*AI$7,AE131,"")) -> 200.0016 | AN131: =IF(AF131="","",IF(AF131<AJ$3+5*AJ$7,AF131,"")) -> 0 | AS131: =IF(AK131="","",IF(AK131<AO$3+5*AO$7,AK131,"")) -> 0 | AT131: =IF(AL131="","",IF(AL131<AP$3+5*AP$7,AL131,"")) -> 154347.0736 | AU131: =IF(AM131="","",IF(AM131<AQ$3+5*AQ$7,AM131,"")) -> 200.0016 | AV131: =IF(AN131="","",IF(AN131<AR$3+5*AR$7,AN131,"")) -> 0 | BA131: =IF(AS131="","",IF(AS131<AW$3+5*AW$7,AS131,"")) -> 0 | BB131: =IF(AT131="","",IF(AT131<AX$3+5*AX$7,AT131,"")) -> 154347.0736 | BC131: =IF(AU131="","",IF(AU131<AY$3+5*AY$7,AU131,"")) -> 200.0016 | BD131: =IF(AV131="","",IF(AV131<AZ$3+5*AZ$7,AV131,"")) -> 0 | BU131: =IF(O131<$BG$3,"",O131) ->  | BV131: =IF(P131<$BH$3,"",P131) -> 
A132: 100.0004 | M132: 100.0004 | N132: 179783.6553 | O132: 300.0036 | P132: 200.0016 | U132: 100.0004 | V132: 179783.6553 | W132: 300.0036 | X132: 200.0016 | AC132: 100.0004 | AD132: 179783.6553 | AE132: 300.0036 | AF132: 200.0016 | AK132: 100.0004 | AL132: 179783.6553 | AM132: 300.0036 | AN132: 200.0016 | AS132: 100.0004 | AT132: 179783.6553 | AU132: 300.0036 | AV132: 200.0016 | BA132: 100.0004 | BB132: 179783.6553 | BC132: 300.0036 | BD132: 200.0016
A133: 300.0036 | M133: 300.0036 | N133: 158295.9984 | O133: 100.0004 | P133: 100.0004 | U133: 300.0036 | V133: 158295.9984 | W133: 100.0004 | X133: 100.0004 | AC133: 300.0036 | AD133: 158295.9984 | AE133: 100.0004 | AF133: 100.0004 | AK133: 300.0036 | AL133: 158295.9984 | AM133: 100.0004 | AN133: 100.0004 | AS133: 300.0036 | AT133: 158295.9984 | AU133: 100.0004 | AV133: 100.0004 | BA133: 300.0036 | BB133: 158295.9984 | BC133: 100.0004 | BD133: 100.0004
A134: 3400.462463 | M134: 3400.462463 | N134: 173191.5579 | O134: 400.0064001 | P134: 0 | U134: 3400.462463 | V134: 173191.5579 | W134: 400.0064001 | X134: 0 | AC134: 3400.462463 | AD134: 173191.5579 | AE134: 400.0064001 | AF134: 0 | AK134: 3400.462463 | AL134: 173191.5579 | AM134: 400.0064001 | AN134: 0 | AS134: 3400.462463 | AT134: 173191.5579 | AU134: 400.0064001 | AV134: 0 | BA134: 3400.462463 | BB134: 173191.5579 | BC134: 400.0064001 | BD134: 0
A135: 61450.67706 | M135: 61450.67706 | N135: 168224.412 | O135: 100.0004 | P135: 200.0016 | U135: 61450.67706 | V135: 168224.412 | W135: 100.0004 | X135: 200.0016 | AC135: 61450.67706 | AD135: 168224.412 | AE135: 100.0004 | AF135: 200.0016 | AL135: 168224.412 | AM135: 100.0004 | AN135: 200.0016 | AT135: 168224.412 | AU135: 100.0004 | AV135: 200.0016 | BB135: 168224.412 | BC135: 100.0004 | BD135: 200.0016
A136: 3500.490069 | M136: 3500.490069 | N136: 176740.7199 | O136: 100.0004 | P136: 100.0004 | U136: 3500.490069 | V136: 176740.7199 | W136: 100.0004 | X136: 100.0004 | AC136: 3500.490069 | AD136: 176740.7199 | AE136: 100.0004 | AF136: 100.0004 | AK136: 3500.490069 | AL136: 176740.7199 | AM136: 100.0004 | AN136: 100.0004 | AS136: 3500.490069 | AT136: 176740.7199 | AU136: 100.0004 | AV136: 100.0004 | BA136: 3500.490069 | BB136: 176740.7199 | BC136: 100.0004 | BD136: 100.0004
A137: 200.0016 | M137: 200.0016 | N137: 167616.3247 | O137: 200.0016 | P137: 100.0004 | U137: 200.0016 | V137: 167616.3247 | W137: 200.0016 | X137: 100.0004 | AC137: 200.0016 | AD137: 167616.3247 | AE137: 200.0016 | AF137: 100.0004 | AK137: 200.0016 | AL137: 167616.3247 | AM137: 200.0016 | AN137: 100.0004 | AS137: 200.0016 | AT137: 167616.3247 | AU137: 200.0016 | AV137: 100.0004 | BA137: 200.0016 | BB137: 167616.3247 | BC137: 200.0016 | BD137: 100.0004
A138: 100.0004 | M138: 100.0004 | N138: 167920.3647 | O138: 0 | P138: 100.0004 | U138: 100.0004 | V138: 167920.3647 | W138: 0 | X138: 100.0004 | AC138: 100.0004 | AD138: 167920.3647 | AE138: 0 | AF138: 100.0004 | AK138: 100.0004 | AL138: 167920.3647 | AM138: 0 | AN138: 100.0004 | AS138: 100.0004 | AT138: 167920.3647 | AU138: 0 | AV138: 100.0004 | BA138: 100.0004 | BB138: 167920.3647 | BC138: 0 | BD138: 100.0004
A139: 100.0004 | M139: 100.0004 | N139: 160625.4328 | O139: 100.0004 | P139: 100.0004 | U139: 100.0004 | V139: 160625.4328 | W139: 100.0004 | X139: 100.0004 | AC139: 100.0004 | AD139: 160625.4328 | AE139: 100.0004 | AF139: 100.0004 | AK139: 100.0004 | AL139: 160625.4328 | AM139: 100.0004 | AN139: 100.0004 | AS139: 100.0004 | AT139: 160625.4328 | AU139: 100.0004 | AV139: 100.0004 | BA139: 100.0004 | BB139: 160625.4328 | BC139: 100.0004 | BD139: 100.0004
A140: 200.0016 | M140: 200.0016 | N140: 175523.7516 | O140: 300.0036 | P140: 300.0036 | U140: 200.0016 | V140: 175523.7516 | W140: 300.0036 | X140: 300.0036 | AC140: 200.0016 | AD140: 175523.7516 | AE140: 300.0036 | AF140: 300.0036 | AK140: 200.0016 | AL140: 175523.7516 | AM140: 300.0036 | AN140: 300.0036 | AS140: 200.0016 | AT140: 175523.7516 | AU140: 300.0036 | AV140: 300.0036 | BA140: 200.0016 | BB140: 175523.7516 | BC140: 300.0036 | BD140: 300.0036
A141: 100.0004 | M141: 100.0004 | N141: 161638.3649 | O141: 0 | P141: 100.0004 | U141: 100.0004 | V141: 161638.3649 | W141: 0 | X141: 100.0004 | AC141: 100.0004 | AD141: 161638.3649 | AE141: 0 | AF141: 100.0004 | AK141: 100.0004 | AL141: 161638.3649 | AM141: 0 | AN141: 100.0004 | AS141: 100.0004 | AT141: 161638.3649 | AU141: 0 | AV141: 100.0004 | BA141: 100.0004 | BB141: 161638.3649 | BC141: 0 | BD141: 100.0004
A142: 0 | M142: 0 | N142: 181508.3119 | O142: 700.0196005 | P142: 100.0004 | U142: 0 | V142: 181508.3119 | W142: 700.0196005 | X142: 100.0004 | AC142: 0 | AD142: 181508.3119 | AE142: 700.0196005 | AF142: 100.0004 | AK142: 0 | AL142: 181508.3119 | AM142: 700.0196005 | AN142: 100.0004 | AS142: 0 | AT142: 181508.3119 | AU142: 700.0196005 | AV142: 100.0004 | BA142: 0 | BB142: 181508.3119 | BC142: 700.0196005 | BD142: 100.0004
A143: 300.0036 | M143: 300.0036 | N143: 162550.0735 | O143: 0 | P143: 500.0100002 | U143: 300.0036 | V143: 162550.0735 | W143: 0 | X143: 500.0100002 | AC143: 300.0036 | AD143: 162550.0735 | AE143: 0 | AF143: 500.0100002 | AK143: 300.0036 | AL143: 162550.0735 | AM143: 0 | AN143: 500.0100002 | AS143: 300.0036 | AT143: 162550.0735 | AU143: 0 | AV143: 500.0100002 | BA143: 300.0036 | BB143: 162550.0735 | BC143: 0 | BD143: 500.0100002
A144: 0 | M144: 0 | N144: 157182.0736 | O144: 200.0016 | P144: 100.0004 | U144: 0 | V144: 157182.0736 | W144: 200.0016 | X144: 100.0004 | AC144: 0 | AD144: 157182.0736 | AE144: 200.0016 | AF144: 100.0004 | AK144: 0 | AL144: 157182.0736 | AM144: 200.0016 | AN144: 100.0004 | AS144: 0 | AT144: 157182.0736 | AU144: 200.0016 | AV144: 100.0004 | BA144: 0 | BB144: 157182.0736 | BC144: 200.0016 | BD144: 100.0004
A145: 100.0004 | M145: 100.0004 | N145: 167008.2669 | O145: 100.0004 | P145: 100.0004 | U145: 100.0004 | V145: 167008.2669 | W145: 100.0004 | X145: 100.0004 | AC145: 100.0004 | AD145: 167008.2669 | AE145: 100.0004 | AF145: 100.0004 | AK145: 100.0004 | AL145: 167008.2669 | AM145: 100.0004 | AN145: 100.0004 | AS145: 100.0004 | AT145: 167008.2669 | AU145: 100.0004 | AV145: 100.0004 | BA145: 100.0004 | BB145: 167008.2669 | BC145: 100.0004 | BD145: 100.0004
A146: 200.0016 | M146: 200.0016 | N146: 160321.569 | O146: 500.0100002 | P146: 100.0004 | U146: 200.0016 | V146: 160321.569 | W146: 500.0100002 | X146: 100.0004 | AC146: 200.0016 | AD146: 160321.569 | AE146: 500.0100002 | AF146: 100.0004 | AK146: 200.0016 | AL146: 160321.569 | AM146: 500.0100002 | AN146: 100.0004 | AS146: 200.0016 | AT146: 160321.569 | AU146: 500.0100002 | AV146: 100.0004 | BA146: 200.0016 | BB146: 160321.569 | BC146: 500.0100002 | BD146: 100.0004
A147: 300.0036 | M147: 300.0036 | N147: 165285.5958 | O147: 300.0036 | P147: 200.0016 | U147: 300.0036 | V147: 165285.5958 | W147: 300.0036 | X147: 200.0016 | AC147: 300.0036 | AD147: 165285.5958 | AE147: 300.0036 | AF147: 200.0016 | AK147: 300.0036 | AL147: 165285.5958 | AM147: 300.0036 | AN147: 200.0016 | AS147: 300.0036 | AT147: 165285.5958 | AU147: 300.0036 | AV147: 200.0016 | BA147: 300.0036 | BB147: 165285.5958 | BC147: 300.0036 | BD147: 200.0016
A148: 100.0004 | M148: 100.0004 | N148: 156878.293 | O148: 400.0064001 | P148: 100.0004 | U148: 100.0004 | V148: 156878.293 | W148: 400.0064001 | X148: 100.0004 | AC148: 100.0004 | AD148: 156878.293 | AE148: 400.0064001 | AF148: 100.0004 | AK148: 100.0004 | AL148: 156878.293 | AM148: 400.0064001 | AN148: 100.0004 | AS148: 100.0004 | AT148: 156878.293 | AU148: 400.0064001 | AV148: 100.0004 | BA148: 100.0004 | BB148: 156878.293 | BC148: 400.0064001 | BD148: 100.0004
A149: 0 | M149: 0 | N149: 158397.2692 | O149: 300.0036 | P149: 100.0004 | U149: 0 | V149: 158397.2692 | W149: 300.0036 | X149: 100.0004 | AC149: 0 | AD149: 158397.2692 | AE149: 300.0036 | AF149: 100.0004 | AK149: 0 | AL149: 158397.2692 | AM149: 300.0036 | AN149: 100.0004 | AS149: 0 | AT149: 158397.2692 | AU149: 300.0036 | AV149: 100.0004 | BA149: 0 | BB149: 158397.2692 | BC149: 300.0036 | BD149: 100.0004
A150: 100.0004 | M150: 100.0004 | N150: 165386.9229 | O150: 0 | P150: 300.0036 | U150: 100.0004 | V150: 165386.9229 | W150: 0 | X150: 300.0036 | AC150: 100.0004 | AD150: 165386.9229 | AE150: 0 | AF150: 300.0036 | AK150: 100.0004 | AL150: 165386.9229 | AM150: 0 | AN150: 300.0036 | AS150: 100.0004 | AT150: 165386.9229 | AU150: 0 | AV150: 300.0036 | BA150: 100.0004 | BB150: 165386.9229 | BC150: 0 | BD150: 300.0036
A151: 200.0016 | M151: 200.0016 | N151: 162448.7693 | O151: 100.0004 | P151: 100.0004 | U151: 200.0016 | V151: 162448.7693 | W151: 100.0004 | X151: 100.0004 | AC151: 200.0016 | AD151: 162448.7693 | AE151: 100.0004 | AF151: 100.0004 | AK151: 200.0016 | AL151: 162448.7693 | AM151: 100.0004 | AN151: 100.0004 | AS151: 200.0016 | AT151: 162448.7693 | AU151: 100.0004 | AV151: 100.0004 | BA151: 200.0016 | BB151: 162448.7693 | BC151: 100.0004 | BD151: 100.0004
A152: 100.0004 | M152: 100.0004 | N152: 164981.6195 | O152: 300.0036 | P152: 200.0016 | U152: 100.0004 | V152: 164981.6195 | W152: 300.0036 | X152: 200.0016 | AC152: 100.0004 | AD152: 164981.6195 | AE152: 300.0036 | AF152: 200.0016 | AK152: 100.0004 | AL152: 164981.6195 | AM152: 300.0036 | AN152: 200.0016 | AS152: 100.0004 | AT152: 164981.6195 | AU152: 300.0036 | AV152: 200.0016 | BA152: 100.0004 | BB152: 164981.6195 | BC152: 300.0036 | BD152: 200.0016
A153: 500.0100002 | M153: 500.0100002 | N153: 167312.2921 | O153: 400.0064001 | P153: 300.0036 | U153: 500.0100002 | V153: 167312.2921 | W153: 400.0064001 | X153: 300.0036 | AC153: 500.0100002 | AD153: 167312.2921 | AE153: 400.0064001 | AF153: 300.0036 | AK153: 500.0100002 | AL153: 167312.2921 | AM153: 400.0064001 | AN153: 300.0036 | AS153: 500.0100002 | AT153: 167312.2921 | AU153: 400.0064001 | AV153: 300.0036 | BA153: 500.0100002 | BB153: 167312.2921 | BC153: 400.0064001 | BD153: 300.0036
A154: 3500.490069 | M154: 3500.490069 | N154: 169947.4854 | O154: 500.0100002 | P154: 22520.26824 | U154: 3500.490069 | V154: 169947.4854 | W154: 500.0100002 | X154: 22520.26824 | AC154: 3500.490069 | AD154: 169947.4854 | AE154: 500.0100002 | AK154: 3500.490069 | AL154: 169947.4854 | AM154: 500.0100002 | AS154: 3500.490069 | AT154: 169947.4854 | AU154: 500.0100002 | BA154: 3500.490069 | BB154: 169947.4854 | BC154: 500.0100002 | BV154: 22520.26824
A155: 69693.74862 | M155: 69693.74862 | N155: 163563.1605 | O155: 200.0016 | P155: 200.0016 | V155: 163563.1605 | W155: 200.0016 | X155: 200.0016 | AD155: 163563.1605 | AE155: 200.0016 | AF155: 200.0016 | AL155: 163563.1605 | AM155: 200.0016 | AN155: 200.0016 | AT155: 163563.1605 | AU155: 200.0016 | AV155: 200.0016 | BB155: 163563.1605 | BC155: 200.0016 | BD155: 200.0016
A156: 300.0036 | M156: 300.0036 | N156: 182624.3921 | O156: 100.0004 | P156: 200.0016 | U156: 300.0036 | V156: 182624.3921 | W156: 100.0004 | X156: 200.0016 | AC156: 300.0036 | AD156: 182624.3921 | AE156: 100.0004 | AF156: 200.0016 | AK156: 300.0036 | AL156: 182624.3921 | AM156: 100.0004 | AN156: 200.0016 | AS156: 300.0036 | AT156: 182624.3921 | AU156: 100.0004 | AV156: 200.0016 | BA156: 300.0036 | BB156: 182624.3921 | BC156: 100.0004 | BD156: 200.0016
A157: 300.0036 | M157: 300.0036 | N157: 180595.229 | O157: 500.0100002 | P157: 100.0004 | U157: 300.0036 | V157: 180595.229 | W157: 500.0100002 | X157: 100.0004 | AC157: 300.0036 | AD157: 180595.229 | AE157: 500.0100002 | AF157: 100.0004 | AK157: 300.0036 | AL157: 180595.229 | AM157: 500.0100002 | AN157: 100.0004 | AS157: 300.0036 | AT157: 180595.229 | AU157: 500.0100002 | AV157: 100.0004 | BA157: 300.0036 | BB157: 180595.229 | BC157: 500.0100002 | BD157: 100.0004
A158: 600.0144003 | M158: 600.0144003 | N158: 175827.9826 | O158: 200.0016 | P158: 0 | U158: 600.0144003 | V158: 175827.9826 | W158: 200.0016 | X158: 0 | AC158: 600.0144003 | AD158: 175827.9826 | AE158: 200.0016 | AF158: 0 | AK158: 600.0144003 | AL158: 175827.9826 | AM158: 200.0016 | AN158: 0 | AS158: 600.0144003 | AT158: 175827.9826 | AU158: 200.0016 | AV158: 0 | BA158: 600.0144003 | BB158: 175827.9826 | BC158: 200.0016 | BD158: 0
A159: 100.0004 | M159: 100.0004 | N159: 162955.2985 | O159: 600.0144003 | P159: 0 | U159: 100.0004 | V159: 162955.2985 | W159: 600.0144003 | X159: 0 | AC159: 100.0004 | AD159: 162955.2985 | AE159: 600.0144003 | AF159: 0 | AK159: 100.0004 | AL159: 162955.2985 | AM159: 600.0144003 | AN159: 0 | AS159: 100.0004 | AT159: 162955.2985 | AU159: 600.0144003 | AV159: 0 | BA159: 100.0004 | BB159: 162955.2985 | BC159: 600.0144003 | BD159: 0
A160: 100.0004 | M160: 100.0004 | N160: 168629.8198 | O160: 100.0004 | P160: 400.0064001 | U160: 100.0004 | V160: 168629.8198 | W160: 100.0004 | X160: 400.0064001 | AC160: 100.0004 | AD160: 168629.8198 | AE160: 100.0004 | AF160: 400.0064001 | AK160: 100.0004 | AL160: 168629.8198 | AM160: 100.0004 | AN160: 400.0064001 | AS160: 100.0004 | AT160: 168629.8198 | AU160: 100.0004 | AV160: 400.0064001 | BA160: 100.0004 | BB160: 168629.8198 | BC160: 100.0004 | BD160: 400.0064001
A161: 100.0004 | M161: 100.0004 | N161: 175016.7162 | O161: 100.0004 | P161: 300.0036 | U161: 100.0004 | V161: 175016.7162 | W161: 100.0004 | X161: 300.0036 | AC161: 100.0004 | AD161: 175016.7162 | AE161: 100.0004 | AF161: 300.0036 | AK161: 100.0004 | AL161: 175016.7162 | AM161: 100.0004 | AN161: 300.0036 | AS161: 100.0004 | AT161: 175016.7162 | AU161: 100.0004 | AV161: 300.0036 | BA161: 100.0004 | BB161: 175016.7162 | BC161: 100.0004 | BD161: 300.0036
A162: 200.0016 | M162: 200.0016 | N162: 178566.3929 | O162: 300.0036 | P162: 300.0036 | U162: 200.0016 | V162: 178566.3929 | W162: 300.0036 | X162: 300.0036 | AC162: 200.0016 | AD162: 178566.3929 | AE162: 300.0036 | AF162: 300.0036 | AK162: 200.0016 | AL162: 178566.3929 | AM162: 300.0036 | AN162: 300.0036 | AS162: 200.0016 | AT162: 178566.3929 | AU162: 300.0036 | AV162: 300.0036 | BA162: 200.0016 | BB162: 178566.3929 | BC162: 300.0036 | BD162: 300.0036
A163: 200.0016 | M163: 200.0016 | N163: 169035.2407 | O163: 500.0100002 | P163: 100.0004 | U163: 200.0016 | V163: 169035.2407 | W163: 500.0100002 | X163: 100.0004 | AC163: 200.0016 | AD163: 169035.2407 | AE163: 500.0100002 | AF163: 100.0004 | AK163: 200.0016 | AL163: 169035.2407 | AM163: 500.0100002 | AN163: 100.0004 | AS163: 200.0016 | AT163: 169035.2407 | AU163: 500.0100002 | AV163: 100.0004 | BA163: 200.0016 | BB163: 169035.2407 | BC163: 500.0100002 | BD163: 100.0004
A164: 100.0004 | M164: 100.0004 | N164: 153334.7285 | O164: 100.0004 | P164: 0 | U164: 100.0004 | V164: 153334.7285 | W164: 100.0004 | X164: 0 | AC164: 100.0004 | AD164: 153334.7285 | AE164: 100.0004 | AF164: 0 | AK164: 100.0004 | AL164: 153334.7285 | AM164: 100.0004 | AN164: 0 | AS164: 100.0004 | AT164: 153334.7285 | AU164: 100.0004 | AV164: 0 | BA164: 100.0004 | BB164: 153334.7285 | BC164: 100.0004 | BD164: 0
A165: 200.0016 | M165: 200.0016 | N165: 175827.9826 | O165: 700.0196005 | P165: 0 | U165: 200.0016 | V165: 175827.9826 | W165: 700.0196005 | X165: 0 | AC165: 200.0016 | AD165: 175827.9826 | AE165: 700.0196005 | AF165: 0 | AK165: 200.0016 | AL165: 175827.9826 | AM165: 700.0196005 | AN165: 0 | AS165: 200.0016 | AT165: 175827.9826 | AU165: 700.0196005 | AV165: 0 | BA165: 200.0016 | BB165: 175827.9826 | BC165: 700.0196005 | BD165: 0
A166: 100.0004 | M166: 100.0004 | N166: 164677.6505 | O166: 0 | P166: 100.0004 | U166: 100.0004 | V166: 164677.6505 | W166: 0 | X166: 100.0004 | AC166: 100.0004 | AD166: 164677.6505 | AE166: 0 | AF166: 100.0004 | AK166: 100.0004 | AL166: 164677.6505 | AM166: 0 | AN166: 100.0004 | AS166: 100.0004 | AT166: 164677.6505 | AU166: 0 | AV166: 100.0004 | BA166: 100.0004 | BB166: 164677.6505 | BC166: 0 | BD166: 100.0004
A167: 100.0004 | M167: 100.0004 | N167: 154347.0736 | O167: 200.0016 | P167: 200.0016 | U167: 100.0004 | V167: 154347.0736 | W167: 200.0016 | X167: 200.0016 | AC167: 100.0004 | AD167: 154347.0736 | AE167: 200.0016 | AF167: 200.0016 | AK167: 100.0004 | AL167: 154347.0736 | AM167: 200.0016 | AN167: 200.0016 | AS167: 100.0004 | AT167: 154347.0736 | AU167: 200.0016 | AV167: 200.0016 | BA167: 100.0004 | BB167: 154347.0736 | BC167: 200.0016 | BD167: 200.0016
A168: 200.0016 | M168: 200.0016 | N168: 157890.9234 | O168: 500.0100002 | P168: 100.0004 | U168: 200.0016 | V168: 157890.9234 | W168: 500.0100002 | X168: 100.0004 | AC168: 200.0016 | AD168: 157890.9234 | AE168: 500.0100002 | AF168: 100.0004 | AK168: 200.0016 | AL168: 157890.9234 | AM168: 500.0100002 | AN168: 100.0004 | AS168: 200.0016 | AT168: 157890.9234 | AU168: 500.0100002 | AV168: 100.0004 | BA168: 200.0016 | BB168: 157890.9234 | BC168: 500.0100002 | BD168: 100.0004
A169: 200.0016 | M169: 200.0016 | N169: 168224.412 | O169: 200.0016 | P169: 0 | U169: 200.0016 | V169: 168224.412 | W169: 200.0016 | X169: 0 | AC169: 200.0016 | AD169: 168224.412 | AE169: 200.0016 | AF169: 0 | AK169: 200.0016 | AL169: 168224.412 | AM169: 200.0016 | AN169: 0 | AS169: 200.0016 | AT169: 168224.412 | AU169: 200.0016 | AV169: 0 | BA169: 200.0016 | BB169: 168224.412 | BC169: 200.0016 | BD169: 0
A170: 200.0016 | M170: 200.0016 | N170: 169947.4854 | O170: 300.0036 | P170: 0 | U170: 200.0016 | V170: 169947.4854 | W170: 300.0036 | X170: 0 | AC170: 200.0016 | AD170: 169947.4854 | AE170: 300.0036 | AF170: 0 | AK170: 200.0016 | AL170: 169947.4854 | AM170: 300.0036 | AN170: 0 | AS170: 200.0016 | AT170: 169947.4854 | AU170: 300.0036 | AV170: 0 | BA170: 200.0016 | BB170: 169947.4854 | BC170: 300.0036 | BD170: 0
A171: 100.0004 | M171: 100.0004 | N171: 143013.4606 | O171: 200.0016 | P171: 0 | U171: 100.0004 | V171: 143013.4606 | W171: 200.0016 | X171: 0 | AC171: 100.0004 | AD171: 143013.4606 | AE171: 200.0016 | AF171: 0 | AK171: 100.0004 | AL171: 143013.4606 | AM171: 200.0016 | AN171: 0 | AS171: 100.0004 | AT171: 143013.4606 | AU171: 200.0016 | AV171: 0 | BA171: 100.0004 | BB171: 143013.4606 | BC171: 200.0016 | BD171: 0
A172: 100.0004 | M172: 100.0004 | N172: 143114.6084 | O172: 400.0064001 | P172: 500.0100002 | U172: 100.0004 | V172: 143114.6084 | W172: 400.0064001 | X172: 500.0100002 | AC172: 100.0004 | AD172: 143114.6084 | AE172: 400.0064001 | AF172: 500.0100002 | AK172: 100.0004 | AL172: 143114.6084 | AM172: 400.0064001 | AN172: 500.0100002 | AS172: 100.0004 | AT172: 143114.6084 | AU172: 400.0064001 | AV172: 500.0100002 | BA172: 100.0004 | BB172: 143114.6084 | BC172: 400.0064001 | BD172: 500.0100002
A173: 300.0036 | M173: 300.0036 | N173: 149893.3645 | O173: 600.0144003 | P173: 200.0016 | U173: 300.0036 | V173: 149893.3645 | W173: 600.0144003 | X173: 200.0016 | AC173: 300.0036 | AD173: 149893.3645 | AE173: 600.0144003 | AF173: 200.0016 | AK173: 300.0036 | AL173: 149893.3645 | AM173: 600.0144003 | AN173: 200.0016 | AS173: 300.0036 | AT173: 149893.3645 | AU173: 600.0144003 | AV173: 200.0016 | BA173: 300.0036 | BB173: 149893.3645 | BC173: 600.0144003 | BD173: 200.0016
A174: 68989.86009 | M174: 68989.86009 | N174: 152423.6875 | O174: 700.0196005 | P174: 100.0004 | U174: 68989.86009 | V174: 152423.6875 | W174: 700.0196005 | X174: 100.0004 | AD174: 152423.6875 | AE174: 700.0196005 | AF174: 100.0004 | AL174: 152423.6875 | AM174: 700.0196005 | AN174: 100.0004 | AT174: 152423.6875 | AU174: 700.0196005 | AV174: 100.0004 | BB174: 152423.6875 | BC174: 700.0196005 | BD174: 100.0004
A175: 200.0016 | M175: 200.0016 | N175: 159004.911 | O175: 200.0016 | P175: 100.0004 | U175: 200.0016 | V175: 159004.911 | W175: 200.0016 | X175: 100.0004 | AC175: 200.0016 | AD175: 159004.911 | AE175: 200.0016 | AF175: 100.0004 | AK175: 200.0016 | AL175: 159004.911 | AM175: 200.0016 | AN175: 100.0004 | AS175: 200.0016 | AT175: 159004.911 | AU175: 200.0016 | AV175: 100.0004 | BA175: 200.0016 | BB175: 159004.911 | BC175: 200.0016 | BD175: 100.0004
A176: 200.0016 | M176: 200.0016 | N176: 150095.7716 | O176: 200.0016 | P176: 400.0064001 | U176: 200.0016 | V176: 150095.7716 | W176: 200.0016 | X176: 400.0064001 | AC176: 200.0016 | AD176: 150095.7716 | AE176: 200.0016 | AF176: 400.0064001 | AK176: 200.0016 | AL176: 150095.7716 | AM176: 200.0016 | AN176: 400.0064001 | AS176: 200.0016 | AT176: 150095.7716 | AU176: 200.0016 | AV176: 400.0064001 | BA176: 200.0016 | BB176: 150095.7716 | BC176: 200.0016 | BD176: 400.0064001
A177: 200.0016 | M177: 200.0016 | N177: 167616.3247 | O177: 200.0016 | P177: 100.0004 | U177: 200.0016 | V177: 167616.3247 | W177: 200.0016 | X177: 100.0004 | AC177: 200.0016 | AD177: 167616.3247 | AE177: 200.0016 | AF177: 100.0004 | AK177: 200.0016 | AL177: 167616.3247 | AM177: 200.0016 | AN177: 100.0004 | AS177: 200.0016 | AT177: 167616.3247 | AU177: 200.0016 | AV177: 100.0004 | BA177: 200.0016 | BB177: 167616.3247 | BC177: 200.0016 | BD177: 100.0004
A178: 300.0036 | M178: 300.0036 | N178: 173191.5579 | O178: 400.0064001 | P178: 100.0004 | U178: 300.0036 | V178: 173191.5579 | W178: 400.0064001 | X178: 100.0004 | AC178: 300.0036 | AD178: 173191.5579 | AE178: 400.0064001 | AF178: 100.0004 | AK178: 300.0036 | AL178: 173191.5579 | AM178: 400.0064001 | AN178: 100.0004 | AS178: 300.0036 | AT178: 173191.5579 | AU178: 400.0064001 | AV178: 100.0004 | BA178: 300.0036 | BB178: 173191.5579 | BC178: 400.0064001 | BD178: 100.0004
A179: 100.0004 | M179: 100.0004 | N179: 158498.5408 | O179: 100.0004 | P179: 400.0064001 | U179: 100.0004 | V179: 158498.5408 | W179: 100.0004 | X179: 400.0064001 | AC179: 100.0004 | AD179: 158498.5408 | AE179: 100.0004 | AF179: 400.0064001 | AK179: 100.0004 | AL179: 158498.5408 | AM179: 100.0004 | AN179: 400.0064001 | AS179: 100.0004 | AT179: 158498.5408 | AU179: 100.0004 | AV179: 400.0064001 | BA179: 100.0004 | BB179: 158498.5408 | BC179: 100.0004 | BD179: 400.0064001
A180: 200.0016 | M180: 200.0016 | N180: 156574.5198 | O180: 400.0064001 | P180: 300.0036 | U180: 200.0016 | V180: 156574.5198 | W180: 400.0064001 | X180: 300.0036 | AC180: 200.0016 | AD180: 156574.5198 | AE180: 400.0064001 | AF180: 300.0036 | AK180: 200.0016 | AL180: 156574.5198 | AM180: 400.0064001 | AN180: 300.0036 | AS180: 200.0016 | AT180: 156574.5198 | AU180: 400.0064001 | AV180: 300.0036 | BA180: 200.0016 | BB180: 156574.5198 | BC180: 400.0064001 | BD180: 300.0036
A181: 0 | M181: 0 | N181: 164981.6195 | O181: 200.0016 | P181: 500.0100002 | U181: 0 | V181: 164981.6195 | W181: 200.0016 | X181: 500.0100002 | AC181: 0 | AD181: 164981.6195 | AE181: 200.0016 | AF181: 500.0100002 | AK181: 0 | AL181: 164981.6195 | AM181: 200.0016 | AN181: 500.0100002 | AS181: 0 | AT181: 164981.6195 | AU181: 200.0016 | AV181: 500.0100002 | BA181: 0 | BB181: 164981.6195 | BC181: 200.0016 | BD181: 500.0100002
A182: 100.0004 | M182: 100.0004 | N182: 177653.5233 | O182: 700.0196005 | P182: 0 | U182: 100.0004 | V182: 177653.5233 | W182: 700.0196005 | X182: 0 | AC182: 100.0004 | AD182: 177653.5233 | AE182: 700.0196005 | AF182: 0 | AK182: 100.0004 | AL182: 177653.5233 | AM182: 700.0196005 | AN182: 0 | AS182: 100.0004 | AT182: 177653.5233 | AU182: 700.0196005 | AV182: 0 | BA182: 100.0004 | BB182: 177653.5233 | BC182: 700.0196005 | BD182: 0
A183: 100.0004 | M183: 100.0004 | N183: 177552.0974 | O183: 500.0100002 | P183: 100.0004 | U183: 100.0004 | V183: 177552.0974 | W183: 500.0100002 | X183: 100.0004 | AC183: 100.0004 | AD183: 177552.0974 | AE183: 500.0100002 | AF183: 100.0004 | AK183: 100.0004 | AL183: 177552.0974 | AM183: 500.0100002 | AN183: 100.0004 | AS183: 100.0004 | AT183: 177552.0974 | AU183: 500.0100002 | AV183: 100.0004 | BA183: 100.0004 | BB183: 177552.0974 | BC183: 500.0100002 | BD183: 100.0004
A184: 300.0036 | M184: 300.0036 | N184: 189627.5159 | O184: 300.0036 | P184: 400.0064001 | U184: 300.0036 | V184: 189627.5159 | W184: 300.0036 | X184: 400.0064001 | AC184: 300.0036 | AD184: 189627.5159 | AE184: 300.0036 | AF184: 400.0064001 | AK184: 300.0036 | AL184: 189627.5159 | AM184: 300.0036 | AN184: 400.0064001 | AS184: 300.0036 | AT184: 189627.5159 | AU184: 300.0036 | AV184: 400.0064001 | BA184: 300.0036 | BB184: 189627.5159 | BC184: 300.0036 | BD184: 400.0064001
A185: 0 | M185: 0 | N185: 181812.6876 | O185: 700.0196005 | P185: 100.0004 | U185: 0 | V185: 181812.6876 | W185: 700.0196005 | X185: 100.0004 | AC185: 0 | AD185: 181812.6876 | AE185: 700.0196005 | AF185: 100.0004 | AK185: 0 | AL185: 181812.6876 | AM185: 700.0196005 | AN185: 100.0004 | AS185: 0 | AT185: 181812.6876 | AU185: 700.0196005 | AV185: 100.0004 | BA185: 0 | BB185: 181812.6876 | BC185: 700.0196005 | BD185: 100.0004
A186: 0 | M186: 0 | N186: 181711.2282 | O186: 300.0036 | P186: 0 | U186: 0 | V186: 181711.2282 | W186: 300.0036 | X186: 0 | AC186: 0 | AD186: 181711.2282 | AE186: 300.0036 | AF186: 0 | AK186: 0 | AL186: 181711.2282 | AM186: 300.0036 | AN186: 0 | AS186: 0 | AT186: 181711.2282 | AU186: 300.0036 | AV186: 0 | BA186: 0 | BB186: 181711.2282 | BC186: 300.0036 | BD186: 0
A187: 0 | M187: 0 | N187: 170555.6853 | O187: 100.0004 | P187: 100.0004 | U187: 0 | V187: 170555.6853 | W187: 100.0004 | X187: 100.0004 | AC187: 0 | AD187: 170555.6853 | AE187: 100.0004 | AF187: 100.0004 | AK187: 0 | AL187: 170555.6853 | AM187: 100.0004 | AN187: 100.0004 | AS187: 0 | AT187: 170555.6853 | AU187: 100.0004 | AV187: 100.0004 | BA187: 0 | BB187: 170555.6853 | BC187: 100.0004 | BD187: 100.0004
A188: 100.0004 | M188: 100.0004 | N188: 198463.0953 | O188: 700.0196005 | P188: 100.0004 | U188: 100.0004 | V188: 198463.0953 | W188: 700.0196005 | X188: 100.0004 | AC188: 100.0004 | AD188: 198463.0953 | AE188: 700.0196005 | AF188: 100.0004 | AK188: 100.0004 | AL188: 198463.0953 | AM188: 700.0196005 | AN188: 100.0004 | AS188: 100.0004 | AT188: 198463.0953 | AU188: 700.0196005 | AV188: 100.0004 | BA188: 100.0004 | BB188: 198463.0953 | BC188: 700.0196005 | BD188: 100.0004
A189: 300.0036 | M189: 300.0036 | N189: 167413.6355 | O189: 600.0144003 | P189: 200.0016 | U189: 300.0036 | V189: 167413.6355 | W189: 600.0144003 | X189: 200.0016 | AC189: 300.0036 | AD189: 167413.6355 | AE189: 600.0144003 | AF189: 200.0016 | AK189: 300.0036 | AL189: 167413.6355 | AM189: 600.0144003 | AN189: 200.0016 | AS189: 300.0036 | AT189: 167413.6355 | AU189: 600.0144003 | AV189: 200.0016 | BA189: 300.0036 | BB189: 167413.6355 | BC189: 600.0144003 | BD189: 200.0016
A190: 100.0004 | M190: 100.0004 | N190: 171468.0403 | O190: 1200.057603 | P190: 100.0004 | U190: 100.0004 | V190: 171468.0403 | W190: 1200.057603 | X190: 100.0004 | AC190: 100.0004 | AD190: 171468.0403 | AE190: 1200.057603 | AF190: 100.0004 | AK190: 100.0004 | AL190: 171468.0403 | AM190: 1200.057603 | AN190: 100.0004 | AS190: 100.0004 | AT190: 171468.0403 | AU190: 1200.057603 | AV190: 100.0004 | BA190: 100.0004 | BB190: 171468.0403 | BC190: 1200.057603 | BD190: 100.0004
A191: 200.0016 | M191: 200.0016 | N191: 165994.9024 | O191: 400.0064001 | P191: 300.0036 | U191: 200.0016 | V191: 165994.9024 | W191: 400.0064001 | X191: 300.0036 | AC191: 200.0016 | AD191: 165994.9024 | AE191: 400.0064001 | AF191: 300.0036 | AK191: 200.0016 | AL191: 165994.9024 | AM191: 400.0064001 | AN191: 300.0036 | AS191: 200.0016 | AT191: 165994.9024 | AU191: 400.0064001 | AV191: 300.0036 | BA191: 200.0016 | BB191: 165994.9024 | BC191: 400.0064001 | BD191: 300.0036
A192: 400.0064001 | M192: 400.0064001 | N192: 175016.7162 | O192: 800.0256008 | P192: 100.0004 | U192: 400.0064001 | V192: 175016.7162 | W192: 800.0256008 | X192: 100.0004 | AC192: 400.0064001 | AD192: 175016.7162 | AE192: 800.0256008 | AF192: 100.0004 | AK192: 400.0064001 | AL192: 175016.7162 | AM192: 800.0256008 | AN192: 100.0004 | AS192: 400.0064001 | AT192: 175016.7162 | AU192: 800.0256008 | AV192: 100.0004 | BA192: 400.0064001 | BB192: 175016.7162 | BC192: 800.0256008 | BD192: 100.0004
A193: 49297.01653 | M193: 49297.01653 | N193: 164272.37 | O193: 300.0036 | P193: 0 | U193: 49297.01653 | V193: 164272.37 | W193: 300.0036 | X193: 0 | AC193: 49297.01653 | AD193: 164272.37 | AE193: 300.0036 | AF193: 0 | AK193: 49297.01653 | AL193: 164272.37 | AM193: 300.0036 | AN193: 0 | AT193: 164272.37 | AU193: 300.0036 | AV193: 0 | BB193: 164272.37 | BC193: 300.0036 | BD193: 0
A194: 19014.45098 | M194: 19014.45098 | N194: 168832.5286 | O194: 500.0100002 | P194: 300.0036 | U194: 19014.45098 | V194: 168832.5286 | W194: 500.0100002 | X194: 300.0036 | AC194: 19014.45098 | AD194: 168832.5286 | AE194: 500.0100002 | AF194: 300.0036 | AK194: 19014.45098 | AL194: 168832.5286 | AM194: 500.0100002 | AN194: 300.0036 | AS194: 19014.45098 | AT194: 168832.5286 | AU194: 500.0100002 | AV194: 300.0036 | BB194: 168832.5286 | BC194: 500.0100002 | BD194: 300.0036
A195: 2500.250025 | M195: 2500.250025 | N195: 173495.7326 | O195: 700.0196005 | P195: 200.0016 | U195: =IF(M195="","",IF(M195<Q$3+5*Q$7,M195,"")) -> 2500.250025 | V195: =IF(N195="","",IF(N195<R$3+5*R$7,N195,"")) -> 173495.7326 | W195: =IF(O195="","",IF(O195<S$3+5*S$7,O195,"")) -> 700.0196005 | X195: =IF(P195="","",IF(P195<T$3+5*T$7,P195,"")) -> 200.0016 | AC195: =IF(U195="","",IF(U195<Y$3+5*Y$7,U195,"")) -> 2500.250025 | AD195: =IF(V195="","",IF(V195<Z$3+5*Z$7,V195,"")) -> 173495.7326 | AE195: =IF(W195="","",IF(W195<AA$3+5*AA$7,W195,"")) -> 700.0196005 | AF195: =IF(X195="","",IF(X195<AB$3+5*AB$7,X195,"")) -> 200.0016 | AK195: =IF(AC195="","",IF(AC195<AG$3+5*AG$7,AC195,"")) -> 2500.250025 | AL195: =IF(AD195="","",IF(AD195<AH$3+5*AH$7,AD195,"")) -> 173495.7326 | AM195: =IF(AE195="","",IF(AE195<AI$3+5*AI$7,AE195,"")) -> 700.0196005 | AN195: =IF(AF195="","",IF(AF195<AJ$3+5*AJ$7,AF195,"")) -> 200.0016 | AS195: =IF(AK195="","",IF(AK195<AO$3+5*AO$7,AK195,"")) -> 2500.250025 | AT195: =IF(AL195="","",IF(AL195<AP$3+5*AP$7,AL195,"")) -> 173495.7326 | AU195: =IF(AM195="","",IF(AM195<AQ$3+5*AQ$7,AM195,"")) -> 700.0196005 | AV195: =IF(AN195="","",IF(AN195<AR$3+5*AR$7,AN195,"")) -> 200.0016 | BA195: =IF(AS195="","",IF(AS195<AW$3+5*AW$7,AS195,"")) -> 2500.250025 | BB195: =IF(AT195="","",IF(AT195<AX$3+5*AX$7,AT195,"")) -> 173495.7326 | BC195: =IF(AU195="","",IF(AU195<AY$3+5*AY$7,AU195,"")) -> 700.0196005 | BD195: =IF(AV195="","",IF(AV195<AZ$3+5*AZ$7,AV195,"")) -> 200.0016 | BU195: =IF(O195<$BG$3,"",O195) ->  | BV195: =IF(P195<$BH$3,"",P195) -> 
A196: 100.0004 | M196: 100.0004 | N196: 158295.9984 | O196: 500.0100002 | P196: 400.0064001 | U196: 100.0004 | V196: 158295.9984 | W196: 500.0100002 | X196: 400.0064001 | AC196: 100.0004 | AD196: 158295.9984 | AE196: 500.0100002 | AF196: 400.0064001 | AK196: 100.0004 | AL196: 158295.9984 | AM196: 500.0100002 | AN196: 400.0064001 | AS196: 100.0004 | AT196: 158295.9984 | AU196: 500.0100002 | AV196: 400.0064001 | BA196: 100.0004 | BB196: 158295.9984 | BC196: 500.0100002 | BD196: 400.0064001
A197: 300.0036 | M197: 300.0036 | N197: 153739.6568 | O197: 500.0100002 | P197: 100.0004 | U197: 300.0036 | V197: 153739.6568 | W197: 500.0100002 | X197: 100.0004 | AC197: 300.0036 | AD197: 153739.6568 | AE197: 500.0100002 | AF197: 100.0004 | AK197: 300.0036 | AL197: 153739.6568 | AM197: 500.0100002 | AN197: 100.0004 | AS197: 300.0036 | AT197: 153739.6568 | AU197: 500.0100002 | AV197: 100.0004 | BA197: 300.0036 | BB197: 153739.6568 | BC197: 500.0100002 | BD197: 100.0004
A198: 100.0004 | M198: 100.0004 | N198: 172583.2306 | O198: 900.0324012 | P198: 0 | U198: 100.0004 | V198: 172583.2306 | W198: 900.0324012 | X198: 0 | AC198: 100.0004 | AD198: 172583.2306 | AE198: 900.0324012 | AF198: 0 | AK198: 100.0004 | AL198: 172583.2306 | AM198: 900.0324012 | AN198: 0 | AS198: 100.0004 | AT198: 172583.2306 | AU198: 900.0324012 | AV198: 0 | BA198: 100.0004 | BB198: 172583.2306 | BC198: 900.0324012 | BD198: 0
A199: 0 | M199: 0 | N199: 155055.7637 | O199: 500.0100002 | P199: 200.0016 | U199: 0 | V199: 155055.7637 | W199: 500.0100002 | X199: 200.0016 | AC199: 0 | AD199: 155055.7637 | AE199: 500.0100002 | AF199: 200.0016 | AK199: 0 | AL199: 155055.7637 | AM199: 500.0100002 | AN199: 200.0016 | AS199: 0 | AT199: 155055.7637 | AU199: 500.0100002 | AV199: 200.0016 | BA199: 0 | BB199: 155055.7637 | BC199: 500.0100002 | BD199: 200.0016
A200: 300.0036 | M200: 300.0036 | N200: 159815.1458 | O200: 600.0144003 | P200: 0 | U200: 300.0036 | V200: 159815.1458 | W200: 600.0144003 | X200: 0 | AC200: 300.0036 | AD200: 159815.1458 | AE200: 600.0144003 | AF200: 0 | AK200: 300.0036 | AL200: 159815.1458 | AM200: 600.0144003 | AN200: 0 | AS200: 300.0036 | AT200: 159815.1458 | AU200: 600.0144003 | AV200: 0 | BA200: 300.0036 | BB200: 159815.1458 | BC200: 600.0144003 | BD200: 0
... 925 more rows
